Cogmind - Beta 11 X6 @@@ ROGUE MODE // 2021.08.20 @ 05:00:28 Player: Ultimate Luigi-Digger Result: Heading to fleet! Performance ------------- Evolutions (9) 4500 Regions Visited (34) 6800 Robots Destroyed (351) 1755 Value Destroyed (20416) 20416 Prototype IDs (88) 1760 Alien Tech Used (13) 2600 Bonus (54600) 54600 TOTAL SCORE: 92431 Bonus ------- High Alert Combat Kills 4477 Follower Combat Kills 3155 Entered Garrisons 200 Met Data Miner 300 Met Imprinter 300 Was Imprinted 300 Met Zhirov 300 Met Warlord at Base 500 MAIN.C Attacked Warlord 500 Used Core Reset Matrix 3000 Destroyed MAIN.C Guards 500 Met MAIN.C 5000 Destroyed MAIN.C Shell 5000 Destroyed MAIN.C 10000 Met Architect 300 Destroyed A8 300 Destroyed A6 400 Destroyed A5 500 Destroyed A4 700 Destroyed A3 800 Destroyed A2 1000 Destroyed Architect 15000 Win 3000 Friendly Fire -932 Cogmind --------- Core Integrity 1135/1600 Matter 226/300 Energy 1237/1260 System Corruption 0% Temperature Cool (12) Movement Treading (143) Location To Fleet Rendezvous Parts ------- > --- POWER (4) -------- Zero-point Reactor Zero-point Reactor Zero-point Reactor Zero-point Reactor > --- PROPULSION (6) --- Experimental Biometal Heavy Treads Experimental Biometal Heavy Treads High-density Centrium Heavy Treads > --- UTILITY (11) ----- Experimental Power Amplifier Coolant Network Huge Storage Unit Experimental Energy Well Spectral Analyzer Experimental Targeting Computer Experimental Targeting Computer Experimental Targeting Computer Experimental Targeting Computer 7V-RTL's Ultimate Field > --- WEAPON (4) ------- Improved Potential Cannon Sigix Broadsword > --- INVENTORY (25) --- Enhanced Flexi-carbon Leg Experimental Biometal Leg Advanced Coolant Injector Experimental Energy Well (600) Experimental Energy Well (600) Precision Matter Filter Advanced Weapon Cycler Zionite Weapon Casing Centrium Medium Armor Plating Improved Focal Shield EM Dispersion Field Experimental Force Field AEGIS Remote Shield Long-range Tractor Beam Mobile Refinery Mk. CCLXVII Potential Cannon Hypervelocity Linear Accelerator Hypervelocity Linear Accelerator Perforator Peak State ------------ > --- POWER ------------ Zero-point Reactor Zero-point Reactor Zero-point Reactor Zero-point Reactor > --- PROPULSION ------- Experimental Biometal Heavy Treads Enhanced Armored Heavy Treads High-density Centrium Heavy Treads > --- UTILITY ---------- Experimental Power Amplifier Coolant Network Huge Storage Unit Experimental Energy Well Spectral Analyzer Experimental Targeting Computer Experimental Targeting Computer Experimental Targeting Computer Experimental Targeting Computer 7V-RTL's Ultimate Field > --- WEAPON ----------- Improved Potential Cannon Sigix Broadsword > --- INVENTORY -------- Experimental Biometal Heavy Treads Enhanced Flexi-carbon Leg Experimental Biometal Leg Advanced Coolant Injector Experimental Energy Well Experimental Energy Well Precision Matter Filter Advanced Weapon Cycler Zionite Weapon Casing Centrium Medium Armor Plating Improved Focal Shield EM Dispersion Field Experimental Force Field AEGIS Remote Shield Long-range Tractor Beam Mobile Refinery Mk. CCLXVII Potential Cannon Hypervelocity Linear Accelerator Hypervelocity Linear Accelerator Perforator [Rating: 254] Favorites ----------- Power Zero-point Reactor Engine Reinforced Deuterium Engine Power Core Light Nuclear Core Reactor Zero-point Reactor Propulsion Armored Medium Treads Treads Armored Medium Treads Leg Aluminum Leg Wheel Armored Wheel Utility Experimental Targeting Computer Device 7V-RTL's Ultimate Field Storage Huge Storage Unit Processor Experimental Targeting Computer Hackware Advanced Hacking Suite Protection Improved Utility Shielding Artifact Core Physics Calibrator Weapon Autogun Energy Gun Vortex Rifle Energy Cannon Improved Potential Cannon Ballistic Gun Autogun Ballistic Cannon Antimatter Cannon Launcher Mini Grenade Launcher Special Weapon Mining Laser Impact Weapon Core Stripper Slashing Weapon Sigix Broadsword Piercing Weapon Heavy Pick Build | -11 -10 -10 -9 -9 -9 -9 -7 -7 -7 -7 -6 -6 -6 -6 -6 -5 -5 -5 -5 -5 -4 -4 -4 -4 -4 -3 -3 -3 -3 -2 -2 -1 -1 -1 ------- Run | Scr Mat Min Mat Sto Gar Rec Fac Low Low Zio Pro Fac Low Low Dat Pro Fac Upp Upp War Pro Fac Upp Upp Zhi Pro Res Qua Sec Res Tes Acc Com Ac0 Slots Evolved 18 | . . . 2 . . . 4 . . . . 2 . . . . 2 . . . . 2 . . . . 2 . . 2 . 2 . . Power 3 | . . . . . . . 1 . . . . . . . . . . . . . . . . . . . . . . . . 2 . . Propulsion 4 | . . . . . . . . . . . . 2 . . . . 2 . . . . . . . . . . . . . . . . . Utility 9 | . . . . . . . 3 . . . . . . . . . . . . . . 2 . . . . 2 . . 3 . -1 . . Weapon 2 | . . . 2 . . . . . . . . . . . . . . . . . . . . . . . . . . -1 . 1 . . Parts Attached 556 | 11 29 18 11 16 9 5 37 5 10 9 12 27 5 5 . 23 12 1 12 27 12 28 4 1 8 11 15 40 21 31 . 7 64 30 Power 35 | 2 1 1 . 2 1 . 3 . 2 . 1 . 2 1 . . 3 . 2 1 . . . . 2 . . 1 . . . 2 5 3 Engine 17 | 2 1 1 . 2 1 . 3 . 1 . 1 . 2 1 . . 1 . 1 . . . . . . . . . . . . . . . Core 4 | . . . . . . . . . 1 . . . . . . . 2 . 1 . . . . . . . . . . . . . . . Reactor 14 | . . . . . . . . . . . . . . . . . . . . 1 . . . . 2 . . 1 . . . 2 5 3 Propulsion 71 | 4 8 3 4 6 . 1 2 . . 2 . 6 . . . 2 3 . 1 9 2 1 . . . . 3 6 . . . . 3 5 Treads 54 | 2 6 2 4 4 . . . . . . . 4 . . . 2 3 . 1 7 2 1 . . . . 3 6 . . . . 3 4 Leg 5 | 2 2 . . . . . . . . . . . . . . . . . . 1 . . . . . . . . . . . . . . Wheel 12 | . . 1 . 2 . 1 2 . . 2 . 2 . . . . . . . 1 . . . . . . . . . . . . . 1 Hover . | . . . . . . . . . . . . . . . . . . . . . . . . . . . . . . . . . . . Flight . | . . . . . . . . . . . . . . . . . . . . . . . . . . . . . . . . . . . Utility 314 | 2 7 7 . 2 5 1 18 2 5 4 6 11 2 4 . 20 5 1 6 10 10 26 4 1 5 11 12 21 21 27 . 4 41 13 Device 224 | 1 4 3 . . 3 1 13 2 2 4 5 8 1 3 . 12 2 1 4 6 10 19 4 1 1 11 11 14 18 21 . 4 26 9 Storage 19 | . 2 2 . 2 . . . . 1 . . . . . . . . . 1 1 . . . . 1 . . 3 . 1 . . 3 2 Processor 18 | 1 . . . . 1 . 1 . . . . 1 . . . . . . . 2 . 2 . . . . 1 . . 4 . . 4 1 Hackware 3 | . . . . . . . . . . . . . . . . 1 1 . . . . . . . . . . 1 . . . . . . Protection 49 | . 1 2 . . 1 . 4 . 2 . 1 2 1 1 . 7 2 . 1 1 . 5 . . 3 . . 3 2 1 . . 8 1 Artifact 1 | . . . . . . . . . . . . . . . . . . . . . . . . . . . . . 1 . . . . . Weapon 136 | 3 13 7 7 6 3 3 14 3 3 3 5 10 1 . . 1 1 . 3 7 . 1 . . 1 . . 12 . 4 . 1 15 9 Energy Gun 18 | 2 2 . . . . . 4 . . . . . . . . . . . 1 2 . . . . . . . 3 . 1 . . 3 . Energy Cannon 23 | . 5 3 . . . . . . . . . . . . . . . . . 1 . . . . . . . 2 . 1 . . 5 6 Ballistic Gun 70 | 1 3 2 7 5 3 3 7 3 3 1 3 6 1 . . 1 1 . 2 4 . 1 . . 1 . . 4 . 2 . 1 5 . Ballistic Cannon 5 | . . . . . . . . . . . . 1 . . . . . . . . . . . . . . . . . . . . 1 3 Launcher 13 | . 1 2 . 1 . . 3 . . 2 2 1 . . . . . . . . . . . . . . . 1 . . . . . . Special Weapon 2 | . 2 . . . . . . . . . . . . . . . . . . . . . . . . . . . . . . . . . Impact Weapon 1 | . . . . . . . . . . . . . . . . . . . . . . . . . . . . 1 . . . . . . Slashing Weapon 2 | . . . . . . . . . . . . . . . . . . . . . . . . . . . . 1 . . . . 1 . Piercing Weapon 2 | . . . . . . . . . . . . 2 . . . . . . . . . . . . . . . . . . . . . . Special Melee Weapon . | . . . . . . . . . . . . . . . . . . . . . . . . . . . . . . . . . . . Unidentified Prototypes 66 | . . 1 1 . . . 1 . . 4 . 2 1 . . 1 . . 3 11 . 1 . . 4 . 2 13 . 1 . . 16 4 Corrupted Parts 5 | . . . . . . . . . . . 1 . . . . . . . . 3 1 . . . . . . . . . . . . . System Corruption 21 | . . . . . . . . . . . 2 . . . . . . . . 18 1 . . . . . . . . . . . . . Parts Lost 31 | . 2 4 . . 4 . 10 . 4 . 1 . . . . 1 . . . . . . . . . . . 2 . . . . 2 1 Power 4 | . . 1 . . . . . . 2 . . . . . . . . . . . . . . . . . . . . . . . 1 . Propulsion 6 | . 2 2 . . . . 2 . . . . . . . . . . . . . . . . . . . . . . . . . . . Utility 12 | . . 1 . . 1 . 5 . 2 . . . . . . 1 . . . . . . . . . . . . . . . . 1 1 Weapon 9 | . . . . . 3 . 3 . . . 1 . . . . . . . . . . . . . . . . 2 . . . . . . Highest Loss Streak 5 | . 2 3 . . 3 . 5 . 2 . 1 . . . . 1 . . . . . . . . . . . 1 . . . . 1 1 Average Slot Usage (%) 89 | . 99 99 100 100 99 100 95 100 99 99 99 97 100 100 100 95 97 100 98 89 94 93 94 94 93 93 92 79 75 75 78 78 80 76 Engine 5 | . 14 13 11 11 11 11 14 15 12 7 7 13 13 13 13 13 . . . 2 . . . . . . . . . . . . . . Reactor 4 | . . . . . . . . . . . . . . . . . . . . 2 5 5 5 5 5 5 4 4 4 4 4 10 13 16 Treads 16 | . 18 26 20 19 . . . . . . . 6 26 26 26 26 35 35 33 25 35 31 31 31 31 31 25 17 14 13 13 12 12 12 Wheel 3 | . . 1 1 2 22 22 14 15 15 15 15 18 . . . . . . . 2 . . . . . . . . . . . . . . Device 15 | . 18 9 . . 7 11 16 15 16 23 23 19 19 19 20 13 7 11 16 20 11 18 15 15 11 14 23 18 15 21 21 20 17 12 Storage 7 | . 4 14 11 11 11 11 7 7 11 7 7 6 6 6 6 6 5 5 5 5 5 5 5 5 5 5 4 5 6 4 8 4 5 8 Processor 7 | . 3 . . . . . 3 7 . . . . . . . . . . . 2 5 8 10 10 10 10 9 9 9 13 8 8 13 19 Protection 5 | . 1 4 11 11 3 . 6 7 7 7 7 4 6 6 6 8 9 11 5 . 5 3 5 5 8 5 4 6 9 5 8 8 7 . Energy Cannon 2 | . 12 27 . . . . . . . . . . . . . . . . . . . . . . . . . . . . . . 1 3 Ballistic Gun 16 | . 8 . 44 43 43 44 27 30 30 29 29 24 26 26 26 26 23 23 23 16 23 21 21 21 21 21 19 8 9 2 4 8 5 . Slashing Weapon 1 | . . . . . . . . . . . . . . . . . . . . . . . . . . . . 2 4 4 4 4 2 4 Naked Turns . | . . . . . . . . . . . . . . . . . . . . . . . . . . . . . . . . . . . Heaviest Build 215 | 10 32 34 40 103 113 113 138 120 148 119 135 144 138 137 134 143 122 119 119 160 156 162 156 155 156 160 162 173 170 172 172 215 215 208 Greatest Support 260 | 40 40 40 40 40 24 24 24 24 24 28 24 80 80 80 80 83 126 126 153 178 162 162 162 162 162 162 168 220 220 220 220 220 260 260 Greatest Overweight (x) 66 | . . 1 2 4 4 4 9 4 6 4 5 3 1 1 1 1 . . . 5 . . . . . . . 54 . . . . 1 66 Average Overweight (x) 1 | . . . . 1 4 4 4 4 4 4 4 2 1 1 1 1 . . . 2 . . . . . . . 1 . . . . . 3 Largest Inventory Capacity 25 | 5 15 20 15 25 25 25 25 25 25 25 25 25 25 25 25 25 25 25 25 25 25 25 25 25 25 25 25 25 25 25 25 25 25 25 Average Capacity 23 | 5 8 15 15 20 25 25 25 25 25 25 25 25 25 25 25 25 25 25 25 25 25 25 25 25 25 25 25 25 25 25 25 25 25 25 Most Carried 25 | 5 13 15 15 20 20 19 25 25 25 25 25 25 24 25 25 25 25 25 25 25 25 25 25 25 25 25 25 25 25 25 25 25 25 23 Average Carried 21 | 1 6 12 14 17 17 16 20 22 23 23 24 24 23 24 25 24 23 24 24 24 23 23 24 25 24 24 24 24 23 22 24 24 21 20 Final Capacity 25 | 5 15 15 15 25 25 25 25 25 25 25 25 25 25 25 25 25 25 25 25 25 25 25 25 25 25 25 25 25 25 25 25 25 25 25 Final Carried 25 | 5 13 14 15 20 15 18 20 25 25 22 25 23 24 25 25 22 25 24 25 23 24 25 25 25 24 25 23 24 21 22 25 25 16 21 Class Distribution -------------------- 22% | Generator-Mutant 17% | Scavenger-Tank 13% | Tank 11% | Scavenger-Skirmisher 8% | Scavenger-Gunner 8% | Scavenger-Mutant 8% | Mutant 7% | Alien-Mutant Dominant Class ---------------- Mutant | -10/Materials Mutant | -10/Mines Scavenger-Tank | -9/Materials Tank | -9/Storage Gunner | -9/Garrison Gunner | -9/Recycling Tank | -7/Factory Tank | -7/Lower Caves Scavenger-Tank | -7/Lower Caves Tank | -7/Zion Scavenger-Tank | -6/Proximity Caves Scavenger-Tank | -6/Factory Scavenger-Skirmisher | -6/Lower Caves Scavenger-Skirmisher | -6/Lower Caves Scavenger-Skirmisher | -6/Data Miner Scavenger-Tank | -5/Proximity Caves Scavenger-Tank | -5/Factory Scavenger-Tank | -5/Upper Caves Scavenger-Skirmisher | -5/Upper Caves Scavenger-Skirmisher | -5/Warlord Scavenger-Tank | -4/Proximity Caves Scavenger-Gunner | -4/Factory Scavenger-Gunner | -4/Upper Caves Scavenger-Gunner | -4/Upper Caves Scavenger-Tank | -4/Zhirov Scavenger-Gunner | -3/Proximity Caves Scavenger-Gunner | -3/Research Scavenger-Mutant | -3/Quarantine Alien-Mutant | -3/Section 7 Alien-Mutant | -2/Research Alien-Mutant | -2/Testing Generator-Mutant | -1/Access Generator-Mutant | -1/Command Generator-Mutant | -1/Access_0 Resources | -11 -10 -10 -9 -9 -9 -9 -7 -7 -7 -7 -6 -6 -6 -6 -6 -5 -5 -5 -5 -5 -4 -4 -4 -4 -4 -3 -3 -3 -3 -2 -2 -1 -1 -1 ----------- Run | Scr Mat Min Mat Sto Gar Rec Fac Low Low Zio Pro Fac Low Low Dat Pro Fac Upp Upp War Pro Fac Upp Upp Zhi Pro Res Qua Sec Res Tes Acc Com Ac0 Matter Collected 16689 | 295 459 240 444 755 540 21 1048 110 483 84 449 941 136 263 . 2295 211 107 296 262 209 1200 203 136 . 460 285 880 967 336 . 206 1797 571 Remotely 1347 | . . . . . . . . . . . . . . . . . . . . . . 333 95 . . . 186 . 179 208 . . 253 93 Salvage Created 17166 | 108 851 317 621 1435 690 . 1149 75 196 . 506 1048 185 187 . 325 . . 372 . . 2047 308 329 . 250 193 518 1115 250 . 391 2120 1580 Parts 850 | 14 45 23 56 83 40 . 63 4 10 . 20 46 10 14 . 28 . . 13 . . 115 12 12 . 12 12 15 41 12 . 26 96 28 Haulers Intercepted 12 | . 2 . 2 6 . . 1 . . . . 1 . . . . . . . . . . . . . . . . . . . . . . Recyclers Shooed 12 | . 1 1 . . . . . . . . . . . . . . . . . . . 3 . . . . . . 5 1 1 . . . Parts Field Recycled . | . . . . . . . . . . . . . . . . . . . . . . . . . . . . . . . . . . . Retrieved Matter . | . . . . . . . . . . . . . . . . . . . . . . . . . . . . . . . . . . . Parts Self-Destructed 294 | . . . . . . . . 4 9 3 15 . 5 13 . 32 . 15 40 97 25 . 12 12 . 12 . . . . . . . . Prevented 27 | . . . . . . . . . . . 7 . . . . . . 5 7 5 3 . . . . . . . . . . . . . Kills | -11 -10 -10 -9 -9 -9 -9 -7 -7 -7 -7 -6 -6 -6 -6 -6 -5 -5 -5 -5 -5 -4 -4 -4 -4 -4 -3 -3 -3 -3 -2 -2 -1 -1 -1 ------- Run | Scr Mat Min Mat Sto Gar Rec Fac Low Low Zio Pro Fac Low Low Dat Pro Fac Upp Upp War Pro Fac Upp Upp Zhi Pro Res Qua Sec Res Tes Acc Com Ac0 Combat Hostiles Destroyed 293 | . 19 22 11 23 16 . 20 1 5 . 9 12 5 5 . 7 . . 4 . . 23 5 5 . 3 2 17 8 3 . 4 24 40 Guns 211 | . 12 . 11 23 16 . 17 1 5 . 6 12 5 5 . 7 . . 4 . . 23 5 5 . 3 2 10 8 3 . 4 24 . Cannons 32 | . 6 5 . . . . . . . . . . . . . . . . . . . . . . . . . 6 . . . . . 15 AOE 39 | . 1 17 . . . . 3 . . . 3 . . . . . . . . . . . . . . . . . . . . . . 15 Classes Destroyed 23 | 2 5 2 1 1 2 . 6 . . . . . . . . . . . 1 . . . . . . . . 2 . . . . 1 . Worker 15 | . 1 . 1 2 . . 1 . . . . 1 . . . . . . . . . 1 . . . . 1 . 3 3 . . 1 . Builder 11 | . . . . . . . 1 . . . . 1 . . . . . . . . . 6 . . . . . . 2 . . 1 . . Tunneler 6 | 3 . 1 1 . . . . . . . . . . . . . . . . . . 1 . . . . . . . . . . . . Hauler 12 | . 2 . 2 6 . . 1 . . . . 1 . . . . . . . . . . . . . . . . . . . . . . Recycler 15 | 1 1 2 . 3 . . . . . . . 2 . . . . . . . . . 2 . . . . . . 3 . . . 1 . Operator 4 | . . . . 2 . . . . . . . 1 . . . . . . . . . 1 . . . . . . . . . . . . Drone 1 | . . . . . . . 1 . . . . . . . . . . . . . . . . . . . . . . . . . . . Watcher 11 | . 1 . 4 2 . . . . . . . . . . . . . . . . . 2 . . . . . . . . . 1 1 . Swarmer 49 | . 6 6 4 7 3 . 4 . 3 . . 3 . 3 . 2 . . . . . 1 1 1 . . . . . . . . 5 . Grunt 74 | . 13 . 3 10 7 . 8 . . . 7 7 . . . . . . 4 . . 10 2 1 . . . . 2 . . . . . Brawler 1 | . . . . . . . 1 . . . . . . . . . . . . . . . . . . . . . . . . . . . Duelist 6 | . . . . . 1 . 2 . . . . . . . . . . . . . . . . 2 . . . . . . . . 1 . Protector 1 | . . . . . . . 1 . . . . . . . . . . . . . . . . . . . . . . . . . . . Sentry 31 | . . . 4 6 4 . 2 1 . . 1 1 . . . . . . . . . 4 1 1 . . 2 . 1 . . 2 1 . Demolisher 1 | . . 1 . . . . . . . . . . . . . . . . . . . . . . . . . . . . . . . . Hunter 15 | . . . . . . . 1 . 1 . . . . 1 . 3 . . . . . 2 . . . 2 . 1 . . . . 4 . Programmer 28 | . . . . . . . 1 . . . . . 1 . . 2 . . . . . 6 1 . . . . 2 3 3 . 2 7 . Heavy 1 | . . . . . . . . . . . . . . . . . . . . . . . . . . . . . . . . . 1 . Behemoth 5 | . . . . . 1 . . . 1 . 1 . . 1 . . . . . . . . . . . 1 . . . . . . . . Quarantine Guard 12 | . . . . . . . . . . . . . . . . . . . . . . . . . . . . 12 . . . . . . S7 Guard 2 | . . . . . . . . . . . . . . . . . . . . . . . . . . . . . 2 . . . . . M Guard 2 | . . . . . . . . . . . . . . . . . . . . . . . . . . . . . . . . . 2 . Enhanced Grunt 23 | . . . . . . . . . . . . . . . . . . . . . . . . . . . . . . . . . . 23 Enhanced Sentry 2 | . . . . . . . . . . . . . . . . . . . . . . . . . . . . . . . . . . 2 Enhanced Hunter 8 | . . . . . . . . . . . . . . . . . . . . . . . . . . . . . . . . . . 8 Combat Programmer 2 | . . . . . . . . . . . . . . . . . . . . . . . . . . . . . . . . . 2 . Alpha 7 1 | . . . . . . . . . . . . . . . . . . . . . . . . . . . . 1 . . . . . . Fortress 1 | . . . . . . . . . . . . . . . . . . . . . . . . . . . . 1 . . . . . . Z-Heavy 1 | . . . . . . . . . . . . . . . . . . . 1 . . . . . . . . . . . . . . . Assembled 15 | . . 15 . . . . . . . . . . . . . . . . . . . . . . . . . . . . . . . . Wasp 3 | . . . . . . . . . . . . . 3 . . . . . . . . . . . . . . . . . . . . . Thug 2 | . . . . . . . . . . . . 1 1 . . . . . . . . . . . . . . . . . . . . . Martyr 1 | . . . . . . . . . . . . . . . . . . . . . . . . . . . . . . . . . 1 . Best Kill Streak 15 | 4 6 15 10 9 3 . 6 1 3 . 3 4 4 3 . 2 . . 2 . . 8 2 5 . 2 2 3 5 3 . 2 6 5 Combat Bots Only 15 | . 6 15 5 5 3 . 6 1 3 . 3 4 4 3 . 2 . . 2 . . 6 2 5 . 2 1 3 3 3 . 1 6 5 Max Kills in Single Turn 4 | 1 2 4 1 2 2 . 3 1 1 . 2 1 1 2 . 2 . . 2 . . 2 1 2 . 1 1 1 2 1 . 1 2 2 Gunslinging 1 | . . . . 1 1 . . . . . . . . 1 . 1 . . . . . 1 . 1 . . . . . . . . 1 . Exploded 4 | . 1 4 . . . . 2 . . . 2 . . . . . . . . . . . . . . . . . . . . . . 1 Melee . | . . . . . . . . . . . . . . . . . . . . . . . . . . . . . . . . . . . Uniques/NPCs Destroyed 9 | . . . . . . . . . . . . . . . . . . . . . . . . . . . . . . . . . 2 7 MAIN.C Shell (-1/Command) MAIN.C (-1/Command) A8 (-1/Access_0) A6 (-1/Access_0) A5 (-1/Access_0) A2 (-1/Access_0) A4 (-1/Access_0) A3 (-1/Access_0) Architect (-1/Access_0) Combat | -11 -10 -10 -9 -9 -9 -9 -7 -7 -7 -7 -6 -6 -6 -6 -6 -5 -5 -5 -5 -5 -4 -4 -4 -4 -4 -3 -3 -3 -3 -2 -2 -1 -1 -1 -------- Run | Scr Mat Min Mat Sto Gar Rec Fac Low Low Zio Pro Fac Low Low Dat Pro Fac Upp Upp War Pro Fac Upp Upp Zhi Pro Res Qua Sec Res Tes Acc Com Ac0 Damage Taken 18376 | . 661 707 208 657 1157 . 1397 70 839 . 519 659 85 522 . 590 33 19 570 34 48 539 83 177 . 160 198 1593 723 96 . 113 2271 3648 Core 1162 | . 97 34 . 75 120 . 140 . 139 . 72 62 . 16 . 70 . . 18 . . 34 . . . . 21 44 18 7 . . 52 143 Absorbed by Shields 17461 | . . . . . . . 240 . . . . . . . . . . . . 33 46 510 78 174 . 158 186 1557 747 258 . 414 2976 10084 Reduced by Siege Mode 559 | . . . . . . . . . . . . . . . . . . . . . . . . . . . . 115 75 5 . . 242 122 Core Remaining (%) 75 | 100 . 47 . . . 51 . . . . 49 . . . . 82 . . . . 98 . . . . 97 . . 58 . 99 . . 70 Volleys Fired 1035 | 12 67 26 29 50 39 2 68 2 26 . 28 46 6 13 . 18 . . 11 2 1 51 11 6 . 13 9 87 77 31 2 19 106 177 Largest 4 | 1 2 2 4 4 4 4 4 4 4 . 4 4 4 4 . 4 . . 4 1 4 4 4 4 . 4 4 4 2 1 1 2 4 1 Hottest 223 | 20 120 120 92 92 92 92 210 92 92 . 97 105 105 103 . 116 . . 121 40 139 139 134 134 . 139 139 216 83 100 38 83 223 200 Shots Fired 2612 | 12 128 43 116 197 155 8 224 8 104 . 97 139 24 52 . 72 . . 44 3 3 202 44 24 . 52 32 201 124 31 2 31 263 177 Gun 2310 | 12 91 . 116 196 155 8 222 8 104 . 92 138 24 52 . 72 . . 44 3 3 202 44 24 . 52 32 174 124 30 2 31 255 . Cannon 281 | . 34 34 . . . . . . . . . . . . . . . . . . . . . . . . . 27 . 1 . . 8 177 Launcher 19 | . 1 9 . 1 . . 2 . . . 5 1 . . . . . . . . . . . . . . . . . . . . . . Special 2 | . 2 . . . . . . . . . . . . . . . . . . . . . . . . . . . . . . . . . Kinetic 2096 | 12 52 . 116 196 155 8 177 8 104 . 92 138 24 52 . 72 . . 44 1 3 202 44 24 . 52 32 109 124 30 2 31 185 7 Thermal 332 | . 75 34 . . . . 45 . . . . . . . . . . . . . . . . . . . . . . . . . 8 170 Explosive 19 | . 1 9 . 1 . . 2 . . . 5 1 . . . . . . . . . . . . . . . . . . . . . . Electromagnetic . | . . . . . . . . . . . . . . . . . . . . . . . . . . . . . . . . . . . Entropic 95 | . . . . . . . . . . . . . . . . . . . . 2 . . . . . . . 92 . 1 . . . . Phasic 70 | . . . . . . . . . . . . . . . . . . . . . . . . . . . . . . . . . 70 . Robot Hit Streak 59 | 9 15 5 11 21 18 4 13 4 9 . 9 9 8 17 . 6 . . 9 . 2 41 11 14 . 29 31 49 32 23 . 25 59 47 Robot Miss Streak 8 | 3 4 2 3 3 3 4 5 1 4 . 3 3 2 6 . 5 . . 8 1 1 8 3 3 . 1 2 2 2 . . 1 4 2 Penetration Max 2 | . . . . . . . . . . . . 1 1 . . 1 . . 1 . . 2 . 1 . . 1 . 2 1 . . 2 1 Secondary Targets 46 | . 3 . 3 4 6 . 2 . 2 . 1 4 1 2 . 2 . . 2 . . 5 . 2 . . . 1 . . . . 6 . Max Gunslinging Chain 2 | . 1 . 1 2 1 . 1 . 1 . 1 1 1 1 . 1 . . 1 . . 2 . 1 . . . 1 . . . . 1 . Shots Hit Robots 1804 | 9 91 23 62 123 106 4 132 4 56 . 60 80 12 35 . 40 . . 20 . 2 132 28 18 . 44 17 154 98 10 1 23 219 201 Core Hits 917 | 5 37 47 26 54 30 1 59 3 15 . 29 35 6 11 . 17 . . 13 . . 76 10 12 . 12 8 63 59 10 . 13 124 142 Critical Kills 32 | 1 . . 1 . 2 . . . . . . 1 1 . . 1 . . . . . 5 2 . . 1 1 . . . . 1 2 13 Critical Parts Destroyed 41 | . . . . . . . . . . . . 4 2 . . . . . . . . 7 . . . 2 . 6 2 . . 1 7 10 Critical Strikes 112 | 1 1 . 1 . 2 . 2 . . . . 5 3 1 . 1 . . . . . 12 2 . . 4 2 24 5 . . 3 16 27 Burn 3 | . 1 . . . . . 2 . . . . . . . . . . . . . . . . . . . . . . . . . . . Meltdown 10 | . . . . . . . . . . . . . . . . . . . . . . . . . . . . . . . . . . 10 Destroy 72 | 1 . . 1 . 2 . . . . . . 5 3 1 . 1 . . . . . 12 2 . . 4 2 3 5 . . 3 10 17 Detonate 3 | . . . . . . . . . . . . . . . . . . . . . . . . . . . . 3 . . . . . . Sunder 18 | . . . . . . . . . . . . . . . . . . . . . . . . . . . . 18 . . . . . . Intensify 6 | . . . . . . . . . . . . . . . . . . . . . . . . . . . . . . . . . 6 . Melee Attacks 124 | . . . . . . . . . . . . 14 . . . . . . . . . . . . . . . 5 24 9 2 8 6 56 Kinetic 2 | . . . . . . . . . . . . . . . . . . . . . . . . . . . . 2 . . . . . . Impact . | . . . . . . . . . . . . . . . . . . . . . . . . . . . . . . . . . . . Slashing 108 | . . . . . . . . . . . . . . . . . . . . . . . . . . . . 3 24 9 2 8 6 56 Piercing 14 | . . . . . . . . . . . . 14 . . . . . . . . . . . . . . . . . . . . . . Sneak Attacks 15 | . . . . . . . . . . . . 1 . . . . . . . . . . . . . . . . 7 4 1 . 2 . Combat Hostiles . | . . . . . . . . . . . . . . . . . . . . . . . . . . . . . . . . . . . Follow-up Attacks . | . . . . . . . . . . . . . . . . . . . . . . . . . . . . . . . . . . . Damage Inflicted 90329 | 122 1419 1551 876 2037 1676 56 2986 61 883 . 1473 1845 366 858 . 858 . . 726 . 77 4821 705 580 . 1099 627 6718 4952 1240 290 893 8655 41879 Guns 37557 | 122 895 . 873 1966 1676 56 2308 61 883 . 919 1720 366 849 . 858 . . 726 . 77 4491 656 580 . 1099 542 4333 3079 313 . 759 7350 . Cannons 25166 | . 456 357 . . . . . . . . . . . . . . . . . . . . . . . . . 1962 . . . . 552 21839 Explosions 20716 | . 47 1173 . 71 . . 678 . . . 554 8 . . . . . . . . . 116 . . . . . 263 . . . . 398 17408 Melee 6373 | . . . . . . . . . . . . 105 . . . . . . . . . . . . . . . 57 1873 927 290 134 355 2632 Ramming 517 | . 21 21 3 . . . . . . . . 12 . 9 . . . . . . . 214 49 . . . 85 103 . . . . . . Kinetic 32372 | 122 519 . 873 1966 1676 56 1547 61 883 . 919 1720 366 849 . 858 . . 726 . 77 4491 656 580 . 1099 542 2014 3079 313 . 759 5480 141 Thermal 42688 | . 832 357 . . . . 1180 . . . . . . . . . . . . . . . . . . . . 263 . . . . 950 39106 Explosive 2112 | . 47 1173 . 71 . . 259 . . . 554 8 . . . . . . . . . . . . . . . . . . . . . . Electromagnetic 116 | . . . . . . . . . . . . . . . . . . . . . . 116 . . . . . . . . . . . . Impact . | . . . . . . . . . . . . . . . . . . . . . . . . . . . . . . . . . . . Slashing 6211 | . . . . . . . . . . . . . . . . . . . . . . . . . . . . . 1873 927 290 134 355 2632 Piercing 105 | . . . . . . . . . . . . 105 . . . . . . . . . . . . . . . . . . . . . . Entropic 4338 | . . . . . . . . . . . . . . . . . . . . . . . . . . . . 4338 . . . . . . Phasic 1870 | . . . . . . . . . . . . . . . . . . . . . . . . . . . . . . . . . 1870 . Highest Corruption 19 | . . 2 . . . . 2 2 2 2 2 1 1 1 1 1 . . . 18 19 3 3 3 3 3 . 1 . . . . . . Average Corruption 2 | . . 2 . . . . 2 2 2 2 2 1 1 1 1 1 . . . 17 18 1 3 3 3 2 . 1 . . . . . . Corruption Purged 4 | . . . . . . . . . . . . . . . . . . . . . . 1 . . . 3 . . . . . . . . Effects 123 | . . 7 . . . . 3 5 9 4 . 5 4 4 1 6 . . . 11 28 3 11 13 4 2 . 3 . . . . . . Message Errors 53 | . . 4 . . . . 2 1 4 3 . 2 2 3 1 3 . . . 2 9 . 5 6 1 2 . 3 . . . . . . Matter Fused 16 | . . . . . . . . . . . . . . . . . . . . 4 7 1 2 1 1 . . . . . . . . . Heat Flow Errors 15 | . . 2 . . . . . 1 2 1 . . . . . . . . . . 3 . 1 3 2 . . . . . . . . . Energy Discharges 17 | . . . . . . . . 2 . . . . . 1 . 1 . . . 3 4 2 2 2 . . . . . . . . . . Data Loss (minor) 15 | . . 1 . . . . . 1 3 . . 2 2 . . 2 . . . . 2 . 1 1 . . . . . . . . . . Data Loss (major) 2 | . . . . . . . . . . . . . . . . . . . . 1 1 . . . . . . . . . . . . . Misfires 1 | . . . . . . . . . . . . . . . . . . . . 1 . . . . . . . . . . . . . . Alerts 1 | . . . . . . . . . . . . . . . . . . . . . 1 . . . . . . . . . . . . . Weapon Failures 3 | . . . . . . . 1 . . . . 1 . . . . . . . . 1 . . . . . . . . . . . . . Overload Shots . | . . . . . . . . . . . . . . . . . . . . . . . . . . . . . . . . . . . Overflow Damage 4009 | . 6 77 . . . . 115 . . . . . . . . . . . . . . 9 45 . . . 5 81 1066 390 40 9 . 2166 Projectiles 1596 | . 6 29 . . . . . . . . . . . . . . . . . . . . . . . . . 38 . . . . . 1523 Explosions 793 | . . 48 . . . . 115 . . . . . . . . . . . . . . . . . . . . 43 . . . . . 587 Melee 1620 | . . . . . . . . . . . . . . . . . . . . . . 9 45 . . . 5 . 1066 390 40 9 . 56 Knockbacks 16 | . . . . . . . . . . . . . . . . . . . . . . 1 . . . . 2 1 . . . . . 12 Impact 4 | . . . . . . . . . . . . . . . . . . . . . . 1 . . . . 2 1 . . . . . . Kinetic 12 | . . . . . . . . . . . . . . . . . . . . . . . . . . . . . . . . . . 12 Secondary . | . . . . . . . . . . . . . . . . . . . . . . . . . . . . . . . . . . . Self-Inflicted Damage 721 | . . 129 . 38 . . . . . . . . . . . . . . . . . . . . . . . . . . . . . 554 Shots 13 | . . 5 . 1 . . . . . . . . . . . . . . . . . . . . . . . . . . . . . 7 Rammed 36 | . 4 4 1 1 . . . . . . . 1 . 1 . . . . . . . 12 1 . . . 4 7 . . . . . . Targets Rammed 38 | . 4 4 1 1 . . . . . . . 2 . 1 . . . . . . . 13 1 . . . 4 7 . . . . . . Kicked . | . . . . . . . . . . . . . . . . . . . . . . . . . . . . . . . . . . . Crushed 2 | . . . . . . . . . . . . 1 . . . . . . . . . 1 . . . . . . . . . . . . Highest Temperature 352 | . 228 132 42 169 121 36 301 271 256 352 144 97 28 20 . 206 . . 233 . 118 32 244 255 179 72 34 196 . 3 . . 108 80 Average Temperature 58 | . 54 50 14 33 47 20 95 107 107 154 39 34 13 5 . 68 . . 52 . 68 12 83 66 88 35 22 62 . 3 . . 53 40 Received Heat Transfer 2403 | . 291 . 45 231 234 . 401 18 72 . 168 192 18 60 . 6 . 9 228 . 8 74 16 4 . . 4 56 99 2 . 6 63 98 Effects 1 | . . . . . . . . . . 1 . . . . . . . . . . . . . . . . . . . . . . . . Energy Bleed 1 | . . . . . . . . . . 1 . . . . . . . . . . . . . . . . . . . . . . . . Siege Activations 44 | . . . . . . . . . . . . . . . . . . . . . . . . . . . 1 14 4 1 . 1 8 15 Total Turns 1832 | . . . . . . . . . . . . . . . . . . . . . . . . . . . 2 529 82 11 . 5 424 779 Longest Duration 364 | . . . . . . . . . . . . . . . . . . . . . . . . . . . 2 364 28 11 . 5 252 249 Robots Corrupted . | . . . . . . . . . . . . . . . . . . . . . . . . . . . . . . . . . . . Combat Hostiles . | . . . . . . . . . . . . . . . . . . . . . . . . . . . . . . . . . . . Parts Fried 1 | . . . . . . . . . . . . . . . . . . . . . . 1 . . . . . . . . . . . . Impact Corruptions 5 | . . . . . . . . . . . . . . . . . . . . . . 1 3 . . . 1 . . . . . . . Robots Melted 10 | . . . . . . . . . . . . . . . . . . . . . . . . . . . . . . . . . . 10 Combat Hostiles 10 | . . . . . . . . . . . . . . . . . . . . . . . . . . . . . . . . . . 10 Parts Melted 14 | . 5 1 . . . . . . . . . . . . . . . . . . . . . . . . . . . . . . . 8 Heat Transferred 19349 | . 2035 740 . . . . 1427 . . . . . . . . . . . . . . . . . . . . 150 . . . . 128 14869 Parts Sabotaged . | . . . . . . . . . . . . . . . . . . . . . . . . . . . . . . . . . . . Parts Stolen . | . . . . . . . . . . . . . . . . . . . . . . . . . . . . . . . . . . . Parts Stripped . | . . . . . . . . . . . . . . . . . . . . . . . . . . . . . . . . . . . Power Chain Reactions . | . . . . . . . . . . . . . . . . . . . . . . . . . . . . . . . . . . . Missiles Intercepted 4 | . . . . . . . . . . . . . . . . . . . . . . . . . . . . . . . . . 4 . Alert | -11 -10 -10 -9 -9 -9 -9 -7 -7 -7 -7 -6 -6 -6 -6 -6 -5 -5 -5 -5 -5 -4 -4 -4 -4 -4 -3 -3 -3 -3 -2 -2 -1 -1 -1 ------- Run | Scr Mat Min Mat Sto Gar Rec Fac Low Low Zio Pro Fac Low Low Dat Pro Fac Upp Upp War Pro Fac Upp Upp Zhi Pro Res Qua Sec Res Tes Acc Com Ac0 Peak Influence 1500 | 20 224 140 301 418 630 403 1500 . . . . 361 . . . . 189 . . . . 669 . . . . 102 430 450 257 57 249 452 . Initial 984 | . 13 67 16 22 85 283 984 . . . . 44 . . . . 30 . . . . 5 . . . . 20 57 191 252 9 33 9 . Average 230 | 14 103 41 137 173 396 328 1126 . . . . 117 . . . . 35 . . . . 251 . . . . 36 256 277 145 42 102 202 . Maximum Alert Level 4 | . 1 . 1 2 2 2 4 . . . . 1 . . . . . . . . . 2 . . . . . 2 2 1 . 1 3 . Low Security (%) 56 | 100 94 100 72 72 17 . . . . . . 77 . . . . 100 . . . . 46 . . . . 100 39 13 59 100 89 22 . Level 1 27 | . 5 . 27 24 7 76 . . . . . 22 . . . . . . . . . 31 . . . . . 55 76 40 . 10 20 . Level 2 6 | . . . . 2 75 23 . . . . . . . . . . . . . . . 21 . . . . . 5 9 . . . 11 . Level 3 7 | . . . . . . . 58 . . . . . . . . . . . . . . . . . . . . . . . . . 45 . Level 4 2 | . . . . . . . 41 . . . . . . . . . . . . . . . . . . . . . . . . . . . Level 5 . | . . . . . . . . . . . . . . . . . . . . . . . . . . . . . . . . . . . High Security . | . . . . . . . . . . . . . . . . . . . . . . . . . . . . . . . . . . . Max Security . | . . . . . . . . . . . . . . . . . . . . . . . . . . . . . . . . . . . Squads Dispatched 47 | . 5 . 1 6 . . 9 . . . . 6 . . . . . . . . . 6 . . . . 2 1 3 2 . 2 4 . Investigation 10 | . 5 . 1 1 . . 1 . . . . 2 . . . . . . . . . . . . . . . . . . . . . . Extermination 13 | . . . . . . . 1 . . . . 2 . . . . . . . . . 3 . . . . 1 . 1 1 . 2 2 . Reinforcement 16 | . . . . 2 . . 4 . . . . 2 . . . . . . . . . 2 . . . . 1 . 2 1 . . 2 . Assault 4 | . . . . . . . 3 . . . . . . . . . . . . . . . . . . . . 1 . . . . . . Garrison 4 | . . . . 3 . . . . . . . . . . . . . . . . . 1 . . . . . . . . . . . . Intercept . | . . . . . . . . . . . . . . . . . . . . . . . . . . . . . . . . . . . Construction Impeded 1 | . . . . . . . 1 . . . . . . . . . . . . . . . . . . . . . . . . . . . Haulers Reinforced 2 | . . . . . . . . . . . . 1 . . . . . . . . . . . . . . . . 1 . . . . . Active Scanning Responses . | . . . . . . . . . . . . . . . . . . . . . . . . . . . . . . . . . . . Cargo Convoy Interrupts 1 | . . . . . . . 1 . . . . . . . . . . . . . . . . . . . . . . . . . . . Stealth | -11 -10 -10 -9 -9 -9 -9 -7 -7 -7 -7 -6 -6 -6 -6 -6 -5 -5 -5 -5 -5 -4 -4 -4 -4 -4 -3 -3 -3 -3 -2 -2 -1 -1 -1 --------- Run | Scr Mat Min Mat Sto Gar Rec Fac Low Low Zio Pro Fac Low Low Dat Pro Fac Upp Upp War Pro Fac Upp Upp Zhi Pro Res Qua Sec Res Tes Acc Com Ac0 Distress Signals 33 | . 2 . 3 5 . . 1 . . . . 2 . . . . . . . . . 4 . . . . . . . . . . 16 . Communications Jammed 55 | . . . . . . . . . . . . . . . . . . . . . . . . . . . 7 . 13 . . 9 26 . Distress Signals 55 | . . . . . . . . . . . . . . . . . . . . . . . . . . . 7 . 13 . . 9 26 . Times Spotted 511 | . 25 21 16 29 16 18 39 1 5 . 12 23 4 5 . 10 1 6 25 22 9 35 3 4 . 3 16 17 14 6 2 16 33 75 Peak Tracking Total 14 | . 7 14 5 6 4 6 9 1 3 . 4 4 3 2 . 4 1 3 5 13 5 6 1 4 . 2 10 3 4 3 1 6 5 5 Tactical Retreats 12 | . 2 . 2 1 1 . 2 . . . . . . . . . . . 1 . . 1 . . . . . . . . . . . 2 Traps | -11 -10 -10 -9 -9 -9 -9 -7 -7 -7 -7 -6 -6 -6 -6 -6 -5 -5 -5 -5 -5 -4 -4 -4 -4 -4 -3 -3 -3 -3 -2 -2 -1 -1 -1 ------- Run | Scr Mat Min Mat Sto Gar Rec Fac Low Low Zio Pro Fac Low Low Dat Pro Fac Upp Upp War Pro Fac Upp Upp Zhi Pro Res Qua Sec Res Tes Acc Com Ac0 Traps Triggered 12 | . 2 . . . 3 . . . . . . . . . . . . . . 1 . 1 . 1 . . . 1 . 1 . 2 . . Indirectly . | . . . . . . . . . . . . . . . . . . . . . . . . . . . . . . . . . . . Trap Hack Attempts . | . . . . . . . . . . . . . . . . . . . . . . . . . . . . . . . . . . . Triggered . | . . . . . . . . . . . . . . . . . . . . . . . . . . . . . . . . . . . Disarmed . | . . . . . . . . . . . . . . . . . . . . . . . . . . . . . . . . . . . Reprogrammed . | . . . . . . . . . . . . . . . . . . . . . . . . . . . . . . . . . . . Reused . | . . . . . . . . . . . . . . . . . . . . . . . . . . . . . . . . . . . Traps Extracted . | . . . . . . . . . . . . . . . . . . . . . . . . . . . . . . . . . . . Installed . | . . . . . . . . . . . . . . . . . . . . . . . . . . . . . . . . . . . Triggered 14 | . . . . . . . 2 . . . . . . 1 . . . . . 8 . . 2 . . . . . . . . . 1 . Machines | -11 -10 -10 -9 -9 -9 -9 -7 -7 -7 -7 -6 -6 -6 -6 -6 -5 -5 -5 -5 -5 -4 -4 -4 -4 -4 -3 -3 -3 -3 -2 -2 -1 -1 -1 ---------- Run | Scr Mat Min Mat Sto Gar Rec Fac Low Low Zio Pro Fac Low Low Dat Pro Fac Upp Upp War Pro Fac Upp Upp Zhi Pro Res Qua Sec Res Tes Acc Com Ac0 Machines Disabled 66 | . 1 . 1 1 . . 2 . . . . 5 . . . . . . . . . 11 . . . . 1 16 8 1 2 2 5 10 Max in Single Turn 3 | . 1 . 1 1 . . 2 . . . . 3 . . . . . . . . . 2 . . . . 1 2 1 1 1 1 1 2 Garrison Access 2 | . . . . . . . . . . . . . . . . . 1 . . . . . . . . . . 1 . . . . . . Machines Sabotaged . | . . . . . . . . . . . . . . . . . . . . . . . . . . . . . . . . . . . Garrisons Compromised 1 | . . . . . . . 1 . . . . . . . . . . . . . . . . . . . . . . . . . . . Overloaded Fab Kills . | . . . . . . . . . . . . . . . . . . . . . . . . . . . . . . . . . . . Fab Network Shutdowns . | . . . . . . . . . . . . . . . . . . . . . . . . . . . . . . . . . . . Hacking | -11 -10 -10 -9 -9 -9 -9 -7 -7 -7 -7 -6 -6 -6 -6 -6 -5 -5 -5 -5 -5 -4 -4 -4 -4 -4 -3 -3 -3 -3 -2 -2 -1 -1 -1 --------- Run | Scr Mat Min Mat Sto Gar Rec Fac Low Low Zio Pro Fac Low Low Dat Pro Fac Upp Upp War Pro Fac Upp Upp Zhi Pro Res Qua Sec Res Tes Acc Com Ac0 Machines Accessed 51 | . 7 1 7 6 . 10 5 1 . . . 1 1 . 3 . 2 . 1 2 . 1 . . 1 . . 1 . . . 1 . . Terminals 23 | . 5 . 6 5 . 3 4 . . . . . . . . . . . . . . . . . . . . . . . . . . . Fabricators 3 | . . . . . . . 1 . . . . 1 . . . . . . . . . 1 . . . . . . . . . . . . Repair Stations . | . . . . . . . . . . . . . . . . . . . . . . . . . . . . . . . . . . . Recycling Units 10 | . 2 . 1 . . 7 . . . . . . . . . . . . . . . . . . . . . . . . . . . . Scanalyzers 3 | . . . . . . . . . . . . . . . . . 1 . . . . . . . . . . 1 . . . 1 . . Garrison Access 2 | . . . . 1 . . . . . . . . . . . . 1 . . . . . . . . . . . . . . . . . Total Hacks 143 | . 21 1 27 14 . 18 12 1 . . . 1 1 . 23 . 5 . 1 7 . 2 . . 4 . . 4 . . . 1 . . Successful 94 | . 12 1 15 8 . 11 4 1 . . . 1 1 . 23 . 4 . 1 7 . . . . 4 . . 1 . . . . . . Failed 49 | . 9 . 12 6 . 7 8 . . . . . . . . . 1 . . . . 2 . . . . . 3 . . . 1 . . Catastrophic 7 | . . . 1 . . 3 2 . . . . . . . . . . . . . . 1 . . . . . . . . . . . . Database Lockouts . | . . . . . . . . . . . . . . . . . . . . . . . . . . . . . . . . . . . Manual 125 | . 14 . 16 8 . 12 6 . . . . 10 . . . . 8 . . 1 . 8 . . . . 6 13 . 11 2 10 . . Terminals 72 | . 17 . 26 12 . 10 7 . . . . . . . . . . . . . . . . . . . . . . . . . . . Fabricators 8 | . . . . . . . 5 . . . . 1 . . . . . . . . . 2 . . . . . . . . . . . . Repair Stations . | . . . . . . . . . . . . . . . . . . . . . . . . . . . . . . . . . . . Recycling Units 13 | . 4 . 1 . . 8 . . . . . . . . . . . . . . . . . . . . . . . . . . . . Scanalyzers 8 | . . . . . . . . . . . . . . . . . 3 . . . . . . . . . . 4 . . . 1 . . Garrison Access 4 | . . . . 2 . . . . . . . . . . . . 2 . . . . . . . . . . . . . . . . . Terminal Hacks 69 | . 9 1 12 5 . 4 1 1 . . . . 1 . 23 . . . 1 7 . . . . 4 . . . . . . . . . Record 10 | . . . . . . . . . . . . . . . 6 . . . . . . . . . 4 . . . . . . . . . Part Schematic 9 | . . . . . . 1 . . . . . . . . 8 . . . . . . . . . . . . . . . . . . . Robot Schematic 7 | . . . 1 . . . . . . . . . . . 6 . . . . . . . . . . . . . . . . . . . Robot Analysis 3 | . 3 . . . . . . . . . . . . . . . . . . . . . . . . . . . . . . . . . Prototype ID Bank 16 | . 5 . 1 . . 1 . . . . . . . . 3 . . . . 6 . . . . . . . . . . . . . . Open Door 8 | . . 1 . 3 . . . 1 . . . . 1 . . . . . 1 1 . . . . . . . . . . . . . . Level Access Points 1 | . . . 1 . . . . . . . . . . . . . . . . . . . . . . . . . . . . . . . Branch Access Points 2 | . . . 1 . . . 1 . . . . . . . . . . . . . . . . . . . . . . . . . . . Alert Level 5 | . . . 3 1 . 1 . . . . . . . . . . . . . . . . . . . . . . . . . . . . Unreport Threat 3 | . . . 1 1 . 1 . . . . . . . . . . . . . . . . . . . . . . . . . . . . Locate Traps 3 | . 1 . 2 . . . . . . . . . . . . . . . . . . . . . . . . . . . . . . . Patrol Status 1 | . . . 1 . . . . . . . . . . . . . . . . . . . . . . . . . . . . . . . Hauler Manifests 1 | . . . 1 . . . . . . . . . . . . . . . . . . . . . . . . . . . . . . . Fabricator Hacks 2 | . . . . . . . 2 . . . . . . . . . . . . . . . . . . . . . . . . . . . Load Schematic 1 | . . . . . . . 1 . . . . . . . . . . . . . . . . . . . . . . . . . . . Build 1 | . . . . . . . 1 . . . . . . . . . . . . . . . . . . . . . . . . . . . Repair Station Hacks . | . . . . . . . . . . . . . . . . . . . . . . . . . . . . . . . . . . . Recycling Unit Hacks . | . . . . . . . . . . . . . . . . . . . . . . . . . . . . . . . . . . . Scanalyzer 4 | . . . . . . . . . . . . . . . . . 3 . . . . . . . . . . 1 . . . . . . Insert Component 2 | . . . . . . . . . . . . . . . . . 1 . . . . . . . . . . 1 . . . . . . Analyze 2 | . . . . . . . . . . . . . . . . . 2 . . . . . . . . . . . . . . . . . Garrison Access Hacks 3 | . . . . 2 . . . . . . . . . . . . 1 . . . . . . . . . . . . . . . . . Unlock Access 1 | . . . . 1 . . . . . . . . . . . . . . . . . . . . . . . . . . . . . . Seal Access 1 | . . . . . . . . . . . . . . . . . 1 . . . . . . . . . . . . . . . . . Coupler Status 1 | . . . . 1 . . . . . . . . . . . . . . . . . . . . . . . . . . . . . . Unauthorized Hacks 16 | . 3 . 3 1 . 7 1 . . . . 1 . . . . . . . . . . . . . . . . . . . . . . Terminals 5 | . 1 . 2 1 . . 1 . . . . . . . . . . . . . . . . . . . . . . . . . . . Track 1 | . 1 . . . . . . . . . . . . . . . . . . . . . . . . . . . . . . . . . Assimilate 1 | . . . . . . . 1 . . . . . . . . . . . . . . . . . . . . . . . . . . . Botnet 2 | . . . 1 1 . . . . . . . . . . . . . . . . . . . . . . . . . . . . . . Operators 1 | . . . 1 . . . . . . . . . . . . . . . . . . . . . . . . . . . . . . . Fabricators 1 | . . . . . . . . . . . . 1 . . . . . . . . . . . . . . . . . . . . . . Haulers 1 | . . . . . . . . . . . . 1 . . . . . . . . . . . . . . . . . . . . . . Repair Stations . | . . . . . . . . . . . . . . . . . . . . . . . . . . . . . . . . . . . Recycling Units 10 | . 2 . 1 . . 7 . . . . . . . . . . . . . . . . . . . . . . . . . . . . Tunnel 10 | . 2 . 1 . . 7 . . . . . . . . . . . . . . . . . . . . . . . . . . . . Scanalyzers . | . . . . . . . . . . . . . . . . . . . . . . . . . . . . . . . . . . . Garrison Access . | . . . . . . . . . . . . . . . . . . . . . . . . . . . . . . . . . . . Data Cores Recovered . | . . . . . . . . . . . . . . . . . . . . . . . . . . . . . . . . . . . Used . | . . . . . . . . . . . . . . . . . . . . . . . . . . . . . . . . . . . Hacking Detections 27 | . 5 . 5 4 . 4 5 . . . . . . . . . 1 . . . . 1 . . . . . 1 . . . 1 . . Full Trace Events 6 | . 1 . 1 1 . 2 1 . . . . . . . . . . . . . . . . . . . . . . . . . . . Feedback Events . | . . . . . . . . . . . . . . . . . . . . . . . . . . . . . . . . . . . Feedback Blocked . | . . . . . . . . . . . . . . . . . . . . . . . . . . . . . . . . . . . Robot Schematics Acquired 7 | . . . 1 . . . . . . . . . . . 6 . . . . . . . . . . . . . . . . . . . Robots Built 1 | . . . . . . . 1 . . . . . . . . . . . . . . . . . . . . . . . . . . . Matter 153 | . . . . . . . 153 . . . . . . . . . . . . . . . . . . . . . . . . . . . Time 81 | . . . . . . . 81 . . . . . . . . . . . . . . . . . . . . . . . . . . . Total Robot Build Rating 1 | . . . . . . . 1 . . . . . . . . . . . . . . . . . . . . . . . . . . . Part Schematics Acquired 9 | . . . . . . 1 . . . . . . . . 8 . . . . . . . . . . . . . . . . . . . Parts Built . | . . . . . . . . . . . . . . . . . . . . . . . . . . . . . . . . . . . Matter . | . . . . . . . . . . . . . . . . . . . . . . . . . . . . . . . . . . . Time . | . . . . . . . . . . . . . . . . . . . . . . . . . . . . . . . . . . . Total Part Build Rating . | . . . . . . . . . . . . . . . . . . . . . . . . . . . . . . . . . . . Parts Repaired . | . . . . . . . . . . . . . . . . . . . . . . . . . . . . . . . . . . . Time . | . . . . . . . . . . . . . . . . . . . . . . . . . . . . . . . . . . . Parts Recycled . | . . . . . . . . . . . . . . . . . . . . . . . . . . . . . . . . . . . Recycled Matter . | . . . . . . . . . . . . . . . . . . . . . . . . . . . . . . . . . . . Retrieved Matter . | . . . . . . . . . . . . . . . . . . . . . . . . . . . . . . . . . . . Retrieved Components . | . . . . . . . . . . . . . . . . . . . . . . . . . . . . . . . . . . . Parts Scanalyzed 1 | . . . . . . . . . . . . . . . . . 1 . . . . . . . . . . . . . . . . . Part Schematics Acquired . | . . . . . . . . . . . . . . . . . . . . . . . . . . . . . . . . . . . Parts Damaged . | . . . . . . . . . . . . . . . . . . . . . . . . . . . . . . . . . . . Bothacking | -11 -10 -10 -9 -9 -9 -9 -7 -7 -7 -7 -6 -6 -6 -6 -6 -5 -5 -5 -5 -5 -4 -4 -4 -4 -4 -3 -3 -3 -3 -2 -2 -1 -1 -1 ------------ Run | Scr Mat Min Mat Sto Gar Rec Fac Low Low Zio Pro Fac Low Low Dat Pro Fac Upp Upp War Pro Fac Upp Upp Zhi Pro Res Qua Sec Res Tes Acc Com Ac0 Used RIF Installer . | . . . . . . . . . . . . . . . . . . . . . . . . . . . . . . . . . . . Robots Hacked . | . . . . . . . . . . . . . . . . . . . . . . . . . . . . . . . . . . . Non-combat . | . . . . . . . . . . . . . . . . . . . . . . . . . . . . . . . . . . . Combat . | . . . . . . . . . . . . . . . . . . . . . . . . . . . . . . . . . . . Robot Hacks Applied . | . . . . . . . . . . . . . . . . . . . . . . . . . . . . . . . . . . . Relay Couplers Released 7 | . . . . . . . . . . . . . . . . . . . . . . . . . . . . 7 . . . . . . Programmers 7 | . . . . . . . . . . . . . . . . . . . . . . . . . . . . 7 . . . . . . Robots Rewired . | . . . . . . . . . . . . . . . . . . . . . . . . . . . . . . . . . . . Allies Hacked 1 | . . . . . . . . . . . . . . . . . . . . . . . . . . . . . . . . . 1 . Hacks Repelled . | . . . . . . . . . . . . . . . . . . . . . . . . . . . . . . . . . . . Allies | -11 -10 -10 -9 -9 -9 -9 -7 -7 -7 -7 -6 -6 -6 -6 -6 -5 -5 -5 -5 -5 -4 -4 -4 -4 -4 -3 -3 -3 -3 -2 -2 -1 -1 -1 -------- Run | Scr Mat Min Mat Sto Gar Rec Fac Low Low Zio Pro Fac Low Low Dat Pro Fac Upp Upp War Pro Fac Upp Upp Zhi Pro Res Qua Sec Res Tes Acc Com Ac0 Total Allies 54 | . . . . . . . 4 . . 4 . 7 . . . 2 4 . . . . . . . . . 2 2 . 5 . 1 23 . Largest Group 14 | . . . . . . . 2 . . 4 4 7 . . . 2 5 5 5 1 1 1 . . . . 2 2 . 4 . . 14 . Highest-Rated Group 1125 | . . . . . . . 45 . . 156 156 205 . . . 185 363 363 360 99 95 95 . . . . 56 190 . 209 . . 1125 . Highest-Rated Ally 192 | . . . . . . . 29 . . 41 41 31 . . . 99 99 99 99 99 95 95 . . . . 29 95 . 180 . . 192 . Zionite Dispatches 11 | . . . . . . . . . . . . 1 . . . . 3 . . . . 1 . . . . 2 . . 2 . 2 . . Heavy 1 | . . . . . . . . . . . . . . . . . 1 . . . . . . . . . . . . . . . . . Recon 3 | . . . . . . . . . . . . . . . . . 1 . . . . 1 . . . . . . . . . 1 . . Fire 1 | . . . . . . . . . . . . 1 . . . . . . . . . . . . . . . . . . . . . . Hacker 1 | . . . . . . . . . . . . . . . . . 1 . . . . . . . . . . . . . . . . . Hero 1 | . . . . . . . . . . . . . . . . . . . . . . . . . . . . . . 1 . . . . Infowar Resupply 4 | . . . . . . . . . . . . . . . . . . . . . . . . . . . 2 . . 1 . 1 . . Total Orders 90 | . . . . . . 3 26 . . . . 15 . . . . 3 . . 2 . 12 . . . . 2 . . 6 . . 21 . STAY 11 | . . . . . . . 2 . . . . . . . . . . . . . . . . . . . . . . . . . 9 . FOLLOW 6 | . . . . . . . 2 . . . . . . . . . . . . . . . . . . . . . . . . . 4 . AID 1 | . . . . . . . 1 . . . . . . . . . . . . . . . . . . . . . . . . . . . DROP 3 | . . . . . . . . . . . . . . . . . . . . . . . . . . . 2 . . 1 . . . . EXPLORE 50 | . . . . . . 2 14 . . . . 13 . . . . 3 . . 1 . 10 . . . . . . . 3 . . 4 . RETURN 19 | . . . . . . 1 7 . . . . 2 . . . . . . . 1 . 2 . . . . . . . 2 . . 4 . Ally Attacks 413 | . . . . . . . 16 . . . 48 70 . . . 13 16 20 37 10 11 11 . . . . . 14 . 14 . . 133 . Total Damage 19209 | . . . . . . . 142 . . . 1229 1102 . . . 372 870 690 2246 779 1038 529 . . . . . 465 . 592 . . 9155 . Kills 99 | . . . . . . . 1 . . . 4 7 . . . 3 7 6 20 9 8 6 . . . . . . . 2 . . 26 . Allies Corrupted 2 | . . . . . . . . . . . . . . . . . . . . . . . . . . . . . . 1 . . 1 . Allies Melted 1 | . . . . . . . . . . . . . . . . . . . . . . . . . . . . . . 1 . . . . Intel | -11 -10 -10 -9 -9 -9 -9 -7 -7 -7 -7 -6 -6 -6 -6 -6 -5 -5 -5 -5 -5 -4 -4 -4 -4 -4 -3 -3 -3 -3 -2 -2 -1 -1 -1 ------- Run | Scr Mat Min Mat Sto Gar Rec Fac Low Low Zio Pro Fac Low Low Dat Pro Fac Upp Upp War Pro Fac Upp Upp Zhi Pro Res Qua Sec Res Tes Acc Com Ac0 Robot Analysis Total 3 | . 3 . . . . . . . . . . . . . . . . . . . . . . . . . . . . . . . . . Derelict Logs Recovered 11 | . . 1 . . . . . 1 . . . . 2 2 . 2 . 1 1 . . . 1 . . . . . . . . . . . Drone Launches 73 | . . . . . . 4 31 . . . . 15 . . . . 3 . . 1 . 11 . . . . . . . 3 . . 5 . Drone Recoveries 51 | . . . . . . 2 24 . . . . 8 . . . . 1 . . 1 . 7 . . . . . . . 3 . . 5 . Decoded 0b10 Intel 6 | . . . . . . . . . . . . . . . . . . . . . . . . . . . . . . 6 . . . . Garrisons 1 | . . . . . . . . . . . . . . . . . . . . . . . . . . . . . . 1 . . . . Guards 5 | . . . . . . . . . . . . . . . . . . . . . . . . . . . . . . 5 . . . . Zionite Intel Received 6 | . . . . . . . . . . . . 1 . . . . . . . . . . . . . . . 3 . 1 . 1 . . Branch Access 2 | . . . . . . . . . . . . . . . . . . . . . . . . . . . . . . 1 . 1 . . Prototype Stockpiles 1 | . . . . . . . . . . . . . . . . . . . . . . . . . . . . 1 . . . . . . Unaware Analyses 1 | . . . . . . . . . . . . . . . . . . . . . . . . . . . . 1 . . . . . . Trap Installations 2 | . . . . . . . . . . . . 1 . . . . . . . . . . . . . . . 1 . . . . . . Exploration | -11 -10 -10 -9 -9 -9 -9 -7 -7 -7 -7 -6 -6 -6 -6 -6 -5 -5 -5 -5 -5 -4 -4 -4 -4 -4 -3 -3 -3 -3 -2 -2 -1 -1 -1 ------------- Run | Scr Mat Min Mat Sto Gar Rec Fac Low Low Zio Pro Fac Low Low Dat Pro Fac Upp Upp War Pro Fac Upp Upp Zhi Pro Res Qua Sec Res Tes Acc Com Ac0 Turns Passed 45501 | 173 1759 1372 1142 1944 631 433 1239 566 1623 1221 1035 1620 1534 1089 214 2087 825 439 766 1036 636 1276 813 610 246 761 569 4910 734 998 244 817 2041 8098 Spaces Moved 18410 | 101 822 626 375 481 314 276 511 364 952 790 530 614 566 389 81 702 452 261 411 520 345 601 453 349 135 388 294 1600 244 462 147 434 736 2084 Core 181 | 16 . . . . . . . . . . . . . . . . . . . . . . . . . . . 52 . . . . . 113 Treads 13098 | 47 575 519 320 368 . . . . . . . 19 566 389 81 702 452 261 411 281 345 601 453 349 135 388 294 1548 244 462 147 434 736 1971 Legs 285 | 38 247 . . . . . . . . . . . . . . . . . . . . . . . . . . . . . . . . . Wheels 4846 | . . 107 55 113 314 276 511 364 952 790 530 595 . . . . . . . 239 . . . . . . . . . . . . . . Hover . | . . . . . . . . . . . . . . . . . . . . . . . . . . . . . . . . . . . Flight . | . . . . . . . . . . . . . . . . . . . . . . . . . . . . . . . . . . . Fastest Speed 50 | 50 120 115 115 150 150 150 150 150 150 150 150 126 267 267 267 267 165 165 164 160 170 170 170 170 170 170 170 153 158 158 158 158 143 143 Average Speed 196 | 127 147 152 153 228 150 150 162 150 160 150 164 142 267 267 267 267 165 165 164 166 170 170 170 170 170 170 170 247 158 158 158 158 152 316 Slowest Speed 3350 | 160 160 160 160 260 150 150 225 150 180 155 165 267 267 267 267 267 166 165 165 175 170 170 170 170 170 170 170 2750 158 158 158 158 247 3350 Overloaded Moves . | . . . . . . . . . . . . . . . . . . . . . . . . . . . . . . . . . . . Propulsion Burnouts . | . . . . . . . . . . . . . . . . . . . . . . . . . . . . . . . . . . . Robots Hopped . | . . . . . . . . . . . . . . . . . . . . . . . . . . . . . . . . . . . Cave-ins Triggered 1 | . . . . . . . . . . . . . . . . . . . . . . . . . . . . . . 1 . . . . Teleports 6 | . . . . . . . . . . . . . . . . . . . . . . . . . . . 1 . 3 . . . 1 1 Exploration Rate (%) 57 | 6 90 97 29 84 53 99 37 64 89 89 78 44 77 52 69 65 16 44 62 95 62 31 82 61 62 69 13 95 25 14 31 16 38 82 Regions Visited 34 Branch Regions 24 Pre-discovered Areas 16 | . 2 . 1 . . 7 . . . 1 . . . . 1 . . . 1 . . . . . 3 . . . . . . . . . Known Exits Taken 10 | . . . 1 1 . . 1 . . . . . . . . 1 . 1 . . 1 . . . . 1 1 . . 1 . 1 . . Unknown Exits Taken 23 | 1 1 1 . . . 1 . 1 1 1 1 1 1 1 1 . 1 . 1 1 . 1 1 1 1 . . 1 1 . 1 . 1 . Scrap Searched 33 | . . 1 . . . . . 1 4 3 1 . 3 3 . 2 . 1 3 . 2 . 4 2 . 3 . . . . . . . . Spaces Dug 105 | . 2 11 . 10 . . 7 . . . . 13 . . . . . . . 1 . . 1 . . . 1 1 17 22 1 7 10 1 Terrain Destroyed 1521 | . 13 68 . 22 . . 32 . . . 39 34 . 2 . 4 . . 3 3 . 55 12 4 . 5 11 72 58 40 1 13 45 985 Melee 30 | . . . . . . . . . . . . 9 . . . . . . . . . . . . . . . 1 7 5 . 5 2 1 Projectile 305 | . 2 . . . . . . . . . . 14 . 2 . 4 . . 3 3 . 55 12 4 . 5 11 49 50 35 1 8 35 12 AOE 1179 | . 11 68 . 22 . . 32 . . . 39 11 . . . . . . . . . . . . . . . 20 . . . . 7 969 Terrain Rammed . | . . . . . . . . . . . . . . . . . . . . . . . . . . . . . . . . . . . Walls Destroyed . | . . . . . . . . . . . . . . . . . . . . . . . . . . . . . . . . . . . Machines Disabled . | . . . . . . . . . . . . . . . . . . . . . . . . . . . . . . . . . . . Actions | -11 -10 -10 -9 -9 -9 -9 -7 -7 -7 -7 -6 -6 -6 -6 -6 -5 -5 -5 -5 -5 -4 -4 -4 -4 -4 -3 -3 -3 -3 -2 -2 -1 -1 -1 --------- Run | Scr Mat Min Mat Sto Gar Rec Fac Low Low Zio Pro Fac Low Low Dat Pro Fac Upp Upp War Pro Fac Upp Upp Zhi Pro Res Qua Sec Res Tes Acc Com Ac0 Total 25921 | 129 1230 1001 880 1209 383 291 787 386 1005 828 656 1271 579 414 80 883 530 270 480 696 387 745 474 355 152 461 343 2430 445 695 154 529 1510 3253 Wait 5136 | . 276 300 430 611 2 . 151 . 5 17 78 528 . . . 118 48 8 31 105 27 45 4 . . 49 12 626 61 138 1 57 538 870 Move 18373 | 100 821 625 374 481 311 275 510 363 951 789 529 613 565 388 80 701 451 260 410 519 344 600 452 348 134 387 293 1599 243 460 146 433 735 2083 Hop . | . . . . . . . . . . . . . . . . . . . . . . . . . . . . . . . . . . . Pick Up 230 | 3 11 15 16 25 2 6 14 9 6 2 5 18 1 3 . 9 9 . 2 8 2 4 1 . 1 . 3 22 4 4 2 3 9 11 Fast Attach 157 | 9 13 3 2 2 1 . 6 . 4 4 2 4 . . . 4 5 . 6 17 . 2 . . 6 2 3 17 5 13 . 2 17 8 Attach 159 | . 3 6 5 3 6 1 16 . 6 . 1 10 2 . . 11 4 1 2 6 . 4 . . 2 . 5 12 7 7 . 1 23 15 Detach 96 | 2 5 . . . 1 . 4 . 3 2 1 2 . . . 2 2 . 2 9 . 2 . . 1 1 . 7 2 12 . . 21 15 Swap 256 | 2 13 9 4 11 2 4 15 5 . 5 9 13 3 5 . 8 3 . 4 4 12 22 4 1 1 9 8 13 18 11 . 4 26 8 Drop 294 | 1 17 13 19 25 3 3 2 7 4 9 3 21 2 3 . 12 8 1 8 26 1 2 1 . 7 . 6 35 4 9 1 2 29 10 Fire 1035 | 12 67 26 29 50 39 2 68 2 26 . 28 46 6 13 . 18 . . 11 2 1 51 11 6 . 13 9 87 77 31 2 19 106 177 Melee 124 | . . . . . . . . . . . . 14 . . . . . . . . . . . . . . . 5 24 9 2 8 6 56 Ram . | . . . . . . . . . . . . . . . . . . . . . . . . . . . . . . . . . . . Kick . | . . . . . . . . . . . . . . . . . . . . . . . . . . . . . . . . . . . Crush 38 | . 4 4 1 1 . . . . . . . 2 . 1 . . . . . . . 13 1 . . . 4 7 . . . . . . Escape Stasis 17 | . . . . . 16 . . . . . . . . . . . . . . . . . . . . . . . . 1 . . . . Rewire 6 | . . . . . . . 1 . . . . . . 1 . . . . 4 . . . . . . . . . . . . . . . Trap . | . . . . . . . . . . . . . . . . . . . . . . . . . . . . . . . . . . . Miscellaneous . | . . . . . . . . . . . . . . . . . . . . . . . . . . . . . . . . . . . Route ------- -11/Scrapyard -10/Materials (discovered 5 exits: *Mat x3 / *Min x2) -10/Mines (discovered 2 exits: *Mat x2) -9/Materials (discovered 7 exits: Mat x3 / Min x2 / *Sto x2) -9/Storage (discovered 2 exits: *Mat / Gar) -9/Garrison (discovered 3 exits: *Rec x3) -9/Recycling -7/Factory (discovered 3 exits: *Fac / *Low x2) -7/Lower Caves -7/Lower Caves -7/Zion -6/Proximity Caves -6/Factory (discovered 3 exits: *Fac x2 / *Low) -6/Lower Caves -6/Lower Caves -6/Data Miner -5/Proximity Caves -5/Factory (discovered 3 exits: *Fac x2 / [*Upp]) -5/Upper Caves -5/Upper Caves (discovered 2 exits: *Fac / *War) -5/Warlord -4/Proximity Caves -4/Factory (discovered 4 exits: *Res x2 / [*Upp] / Arm) -4/Upper Caves -4/Upper Caves -4/Zhirov -3/Proximity Caves -3/Research -3/Quarantine -3/Section 7 -2/Research (discovered 2 exits: *Tes x2) -2/Testing -1/Access -1/Command -1/Access_0 To Fleet Rendezvous History --------- Turn | Location | Event 2 | -11/Scrapyard | Discovered new exit (range 16) 174 | -11/Scrapyard | Entered Materials 308 | -10/Materials | Build established: Mutant 373 | -10/Materials | Discovered new exit (range 12) 689 | -10/Materials | Discovered new exit (range 15) 720 | -10/Materials | Discovered new exit (range 5) 898 | -10/Materials | Build established: Scavenger-Mutant 907 | -10/Materials | Discovered new exit (range 7) 1341 | -10/Materials | Discovered new exit (range 15) 1668 | -10/Materials | Build established: Mutant 1933 | -10/Materials | Entered Mines 1934 | -10/Mines | Assembled infested the area 1944 | -10/Mines | Met a Derelict bent on vengeance 1952 | -10/Mines | Core integrity fell below 50% 1982 | -10/Mines | Destroyed 15 combat bots 1985 | -10/Mines | Lost 3 parts (2n1u) 2571 | -10/Mines | A weapon hastily lodged in a ceiling crevice suddenly fell to the ground 2597 | -10/Mines | Found the Drone Emporium 2604 | -10/Mines | Found Prototype Device 2604 | -10/Mines | Identified Splice Drone Bay 2688 | -10/Mines | Discovered new exit (range 5) 2904 | -10/Mines | Learned Materials terminal intel 2947 | -10/Mines | Discovered new exit (range 3) 3305 | -10/Mines | Entered Materials 3305 | -9/Materials | Evolved 2 slots: Weapon x2 3306 | -9/Materials | Loaded intel: 11 terminal locations 3650 | -9/Materials | Identified exit to Materials 3668 | -9/Materials | Discovered new exit (range 11) 3696 | -9/Materials | Build established: Tank 3706 | -9/Materials | Identified exit to Mines 3706 | -9/Materials | Identified exit to Storage 4137 | -9/Materials | Build established: Scavenger-Tank 4447 | -9/Materials | Entered Storage 4976 | -9/Storage | Build established: Tank 5142 | -9/Storage | Garrison activated, responded to threat 6069 | -9/Storage | Discovered exit to Materials (range 16) 6391 | -9/Storage | Identified exit to Garrison 6391 | -9/Storage | Entered Garrison 6469 | -9/Garrison | Triggered checkpoint 6571 | -9/Garrison | Spotted B-75 Beast 6639 | -9/Garrison | Lost 3 parts (1u2w) 6666 | -9/Garrison | Destroyed B-75 Beast 6710 | -9/Garrison | Discovered new exit (range 11) 6726 | -9/Garrison | Identified exit to Recycling 6728 | -9/Garrison | Attempted to access garrison exit controls, blocked by remote lockdown 6832 | -9/Garrison | Discovered exit to Recycling (range 13) 6852 | -9/Garrison | Attempted to access garrison exit controls, blocked by remote lockdown 6885 | -9/Garrison | Build established: Gunner 6926 | -9/Garrison | Triggered checkpoint 6994 | -9/Garrison | Discovered exit to Recycling (range 15) 7022 | -9/Garrison | Entered Recycling 7058 | -9/Recycling | Spotter reported a threat 7062 | -9/Recycling | Spotter reported a threat 7062 | -9/Recycling | Spotter reported a threat 7073 | -9/Recycling | Spotter reported a threat 7078 | -9/Recycling | Spotter reported a threat 7091 | -9/Recycling | Spotter reported a threat 7100 | -9/Recycling | Spotter reported a threat 7101 | -9/Recycling | Discovered new exit (range 60) 7111 | -9/Recycling | Spotter reported a threat 7113 | -9/Recycling | Spotter reported a threat 7115 | -9/Recycling | Spotter reported a threat 7115 | -9/Recycling | Spotter reported a threat 7126 | -9/Recycling | Spotter reported a threat 7131 | -9/Recycling | Spotter reported a threat 7144 | -9/Recycling | Spotter reported a threat 7153 | -9/Recycling | Spotter reported a threat 7166 | -9/Recycling | Spotter reported a threat 7168 | -9/Recycling | Spotter reported a threat 7177 | -9/Recycling | Spotter reported a threat 7179 | -9/Recycling | Spotter reported a threat 7187 | -9/Recycling | Spotter reported a threat 7197 | -9/Recycling | Spotter reported a threat 7206 | -9/Recycling | Spotter reported a threat 7209 | -9/Recycling | Spotter reported a threat 7240 | -9/Recycling | Spotter reported a threat 7242 | -9/Recycling | Spotter reported a threat 7262 | -9/Recycling | Spotter reported a threat 7293 | -9/Recycling | Spotter reported a threat 7378 | -9/Recycling | Spotter reported a threat 7386 | -9/Recycling | Spotter reported a threat 7406 | -9/Recycling | Spotter reported a threat 7455 | -9/Recycling | Entered Factory 7455 | -7/Factory | Accompanied by 2 allies 7455 | -7/Factory | Evolved 4 slots: Power x1, Utility x3 7740 | -7/Factory | Build established: Tank 7812 | -7/Factory | Identified exit to Lower Caves 8179 | -7/Factory | Cargo convoy interrupted 8255 | -7/Factory | First assault squad dispatched 8255 | -7/Factory | Lost 5 parts (1n2u2w) 8441 | -7/Factory | Discovered new exit (range 16) 8555 | -7/Factory | Fabricated M-13 Machinist (x1) 8694 | -7/Factory | Entered Lower Caves 9050 | -7/Lower Caves | Discovered new exit (range 10) 9161 | -7/Lower Caves | Encountered a Warlord checkpoint 9189 | -7/Lower Caves | Attracted the attention of an 0b10 checkpoint 9206 | -7/Lower Caves | Learned Factory interactive machine intel 9260 | -7/Lower Caves | Entered another Lower Caves area 9415 | -7/Lower Caves | Encountered a Warlord checkpoint 9442 | -7/Lower Caves | Spotted B-75 Beast 9528 | -7/Lower Caves | Destroyed B-75 Beast 9834 | -7/Lower Caves | Build established: Scavenger-Tank 9957 | -7/Lower Caves | Discovered new exit (range 5) 10833 | -7/Lower Caves | Build established: Tank 10883 | -7/Lower Caves | Entered Zion 10991 | -7/Zion | Discovered new exit (range 15) 11057 | -7/Zion | System corruption cleaned by Quarantine Array 11152 | -7/Zion | Learned location of Quarantine (-3) 11263 | -7/Zion | Given the Hacking Drone Bay 11280 | -7/Zion | Found Prototype Device 11281 | -7/Zion | Identified Hacking Drone Bay 11420 | -7/Zion | Visited the Megawrench Repair Shop 11420 | -7/Zion | Megawrench repaired 12 parts 11495 | -7/Zion | Found Prototype Launcher 11495 | -7/Zion | Identified Rocket Array 11591 | -7/Zion | Found Prototype Device 11591 | -7/Zion | Identified Mobile Refinery Mk. CCLXVII 11682 | -7/Zion | Imprinted 11684 | -7/Zion | Declared Zion's savior 11822 | -7/Zion | Given A8's code to call for help 12104 | -7/Zion | Entered Proximity Caves 12104 | -6/Proximity Caves | Accompanied by 4 allies 12125 | -6/Proximity Caves | Spotted B-75 Beast 12150 | -6/Proximity Caves | Destroyed B-75 Beast 12423 | -6/Proximity Caves | Attracted the attention of an 0b10 checkpoint 12506 | -6/Proximity Caves | Build established: Scavenger-Tank 12942 | -6/Proximity Caves | Core integrity fell below 50% 13131 | -6/Proximity Caves | Discovered new exit (range 3) 13139 | -6/Proximity Caves | Entered Factory 13139 | -6/Factory | Evolved 2 slots: Propulsion x2 13140 | -6/Factory | Loaded intel: 46 interactive machine locations 13657 | -6/Factory | Build established: Scavenger-Mutant 13839 | -6/Factory | Allied Derelicts emerged from ambush trap array 13845 | -6/Factory | Retrieved Zion intel report: Trap Installations 13846 | -6/Factory | Zion Fire squad teleported in 13890 | -6/Factory | Discovered new exit (range 28) 14016 | -6/Factory | P-60 Hacker assimilated allied 6J-HXL(g) 14200 | -6/Factory | Build established: Scavenger-Tank 14213 | -6/Factory | Discovered new exit (range 50) 14402 | -6/Factory | Identified exit to Factory 14554 | -6/Factory | Discovered new exit (range 59) 14575 | -6/Factory | Terminal network hard line cut 14759 | -6/Factory | Entered Lower Caves 15076 | -6/Lower Caves | Build established: Scavenger-Skirmisher 15246 | -6/Lower Caves | Found Prototype Device 15450 | -6/Lower Caves | Learned location of 1 exit from Factory 15944 | -6/Lower Caves | Learned 8 Factory zone layouts 16100 | -6/Lower Caves | Ambushed by wild Derelicts 16236 | -6/Lower Caves | Discovered new exit (range 13) 16293 | -6/Lower Caves | Entered another Lower Caves area 16700 | -6/Lower Caves | Spotted B-75 Beast 16722 | -6/Lower Caves | Destroyed B-75 Beast 16833 | -6/Lower Caves | Learned Factory emergency access door positions 17311 | -6/Lower Caves | Discovered new exit (range 12) 17355 | -6/Lower Caves | Learned Factory terminal intel 17382 | -6/Lower Caves | Entered Data Miner 17382 | -6/Data Miner | Discovered new exit (range 6) 17433 | -6/Data Miner | Met Data Miner 17484 | -6/Data Miner | Learned location of Section 7 (-3) 17484 | -6/Data Miner | Acquired the access code to Warlord's prototype stash 17532 | -6/Data Miner | Received God Mode back door access code from Data Miner 17596 | -6/Data Miner | Entered Proximity Caves 17743 | -5/Proximity Caves | Escorted by Enhanced Grunt 17867 | -5/Proximity Caves | Identified Heart of Steel 18512 | -5/Proximity Caves | Build established: Scavenger-Tank 19267 | -5/Proximity Caves | Learned Factory trap positions 19280 | -5/Proximity Caves | Discovered exit to Factory (range 13) 19524 | -5/Proximity Caves | Heart of Steel transformed into Warbot 19683 | -5/Proximity Caves | Entered Factory 19683 | -5/Factory | Accompanied by 2 allies (Warbot) 19683 | -5/Factory | Evolved 2 slots: Propulsion x2 19684 | -5/Factory | Identified exit to Factory 19686 | -5/Factory | Loaded intel: 69 trap records 19688 | -5/Factory | Loaded intel: 20 terminal locations 19765 | -5/Factory | Zion Recon squad teleported in 19819 | -5/Factory | Discovered new exit (range 18) 20031 | -5/Factory | Zion Heavy squad teleported in 20084 | -5/Factory | Build established: Scavenger-Skirmisher 20415 | -5/Factory | Zion Hacker squad teleported in 20452 | -5/Factory | Build established: Scavenger-Tank 20508 | -5/Factory | Entered Upper Caves 20508 | -5/Upper Caves | Accompanied by 5 allies (Warbot) 20516 | -5/Upper Caves | Encountered a Warlord checkpoint 20655 | -5/Upper Caves | Attracted the attention of an 0b10 checkpoint 20681 | -5/Upper Caves | Identified exit to Upper Caves 20947 | -5/Upper Caves | Entered another Upper Caves area 20947 | -5/Upper Caves | Accompanied by 5 allies (Warbot) 20989 | -5/Upper Caves | Discovered exit to Factory (range 8) 21019 | -5/Upper Caves | Found Prototype Protection 21019 | -5/Upper Caves | Identified Zio. Weapon Casing 21306 | -5/Upper Caves | Build established: Scavenger-Skirmisher 21617 | -5/Upper Caves | Discovered new exit (range 11) 21713 | -5/Upper Caves | Entered Warlord 21713 | -5/Warlord | Accompanied by 1 ally (Warbot) 22070 | -5/Warlord | Visited the Vortex Lab 22076 | -5/Warlord | Found Prototype Energy Gun 22076 | -5/Warlord | Identified Vortex Rifle 22080 | -5/Warlord | Found Vortex Rifle 22082 | -5/Warlord | Warlord's base attacked by MAIN.C 22093 | -5/Warlord | Found Prototype Energy Cannon 22093 | -5/Warlord | Identified Vortex Driver 22098 | -5/Warlord | Found Vortex Driver 22269 | -5/Warlord | Rebuked by Warlord 22283 | -5/Warlord | Opened Warlord's prototype stash 22289 | -5/Warlord | Found Prototype Reactor 22289 | -5/Warlord | Identified Vortex Chain Reactor 22298 | -5/Warlord | Found Prototype Device 22298 | -5/Warlord | Identified Exp. Phase Shifter 22319 | -5/Warlord | Found Prototype Processor 22319 | -5/Warlord | Identified Spectral Analyzer 22323 | -5/Warlord | Found Prototype Device 22323 | -5/Warlord | Identified Exp. Focal Shield 22432 | -5/Warlord | Warlord forces counterattacked 22520 | -5/Warlord | System corruption reached 10% 22525 | -5/Warlord | Spotted Executioner 22535 | -5/Warlord | Spotted Striker 22587 | -5/Warlord | Spotted Striker 22587 | -5/Warlord | Spotted Executioner 22591 | -5/Warlord | Allies destroyed Executioner 22619 | -5/Warlord | Found Prototype Processor 22671 | -5/Warlord | Discovered new exit (range 12) 22682 | -5/Warlord | Spotted B-86 Titan 22749 | -5/Warlord | Entered Proximity Caves 22749 | -4/Proximity Caves | Accompanied by 1 ally (Warbot) 23363 | -4/Proximity Caves | Discovered exit to Factory (range 8) 23385 | -4/Proximity Caves | Entered Factory 23385 | -4/Factory | Accompanied by 1 ally (Warbot) 23385 | -4/Factory | Evolved 2 slots: Utility x2 23386 | -4/Factory | Identified exit to Armory 23513 | -4/Factory | Zion Recon squad teleported in 23515 | -4/Factory | Build established: Scavenger-Tank 23530 | -4/Factory | Discovered new exit (range 27) 23698 | -4/Factory | Garrison activated, responded to threat 23840 | -4/Factory | Identified Exp. Targeting Computer 23919 | -4/Factory | Identified exit to Research 24147 | -4/Factory | Build established: Scavenger-Gunner 24167 | -4/Factory | Spotted B-86 Titan 24300 | -4/Factory | Discovered exit to Research (range 23) 24573 | -4/Factory | Discovered new exit (range 22) 24661 | -4/Factory | Entered Upper Caves 24721 | -4/Upper Caves | Attracted the attention of an 0b10 checkpoint 24751 | -4/Upper Caves | Learned Research stockpile data 25423 | -4/Upper Caves | Discovered new exit (range 4) 25474 | -4/Upper Caves | Entered another Upper Caves area 25853 | -4/Upper Caves | Discovered new exit (range 10) 25895 | -4/Upper Caves | Encountered a Warlord checkpoint 26084 | -4/Upper Caves | Entered Zhirov 26084 | -4/Zhirov | Discovered new exit (range 3) 26115 | -4/Zhirov | Met Zhirov 26154 | -4/Zhirov | Found Alien Artifact 26154 | -4/Zhirov | Identified Integrated Dissipator 26154 | -4/Zhirov | Installed Integrated Dissipator, increased core heat dissipation (+20) 26235 | -4/Zhirov | Found Alien Artifact 26272 | -4/Zhirov | Learned location of Testing (-2) 26284 | -4/Zhirov | Zhirov requested help retrieving the SGEMP Prototype 26330 | -4/Zhirov | Entered Proximity Caves 26701 | -3/Proximity Caves | Spotted B-86 Titan 26753 | -3/Proximity Caves | Destroyed B-86 Titan 27075 | -3/Proximity Caves | Discovered exit to Research (range 8) 27091 | -3/Proximity Caves | Entered Research 27091 | -3/Research | Evolved 2 slots: Utility x2 27194 | -3/Research | Zion Infowar Resupply teleported in 27327 | -3/Research | Zion Infowar Resupply teleported in 27337 | -3/Research | Found Prototype Device 27337 | -3/Research | Identified Exp. Transmission Jammer 27617 | -3/Research | Identified Transdimensional Reconstructor 27617 | -3/Research | Warped through subspace 27633 | -3/Research | Discovered new exit (range 5) 27646 | -3/Research | Identified exit to Quarantine 27660 | -3/Research | Entered Quarantine 27669 | -3/Quarantine | Spotted Alpha 7 27709 | -3/Quarantine | Destroyed Alpha 7 27719 | -3/Quarantine | Found Prototype Ballistic Gun 27725 | -3/Quarantine | Found Exp. Targeting Computer 27744 | -3/Quarantine | Found Alien Launcher 27774 | -3/Quarantine | Cryocooling Duct disabled 27776 | -3/Quarantine | Cryocooling Duct disabled 27789 | -3/Quarantine | Ambient heat levels rising (+20) 27789 | -3/Quarantine | Non-combat units ordered to evacuate 27791 | -3/Quarantine | Ambient heat levels rising (+20) 27791 | -3/Quarantine | Combat units ordered to evacuate 27891 | -3/Quarantine | Quarantine Guard activated 28103 | -3/Quarantine | Build established: Scavenger-Mutant 28325 | -3/Quarantine | Spotted Quarantine Guard 28347 | -3/Quarantine | Destroyed Quarantine Guard 28391 | -3/Quarantine | Found Transdimensional Reconstructor 28397 | -3/Quarantine | Found Alien Artifact 28410 | -3/Quarantine | Found Alien Artifact 28413 | -3/Quarantine | Found Transdimensional Reconstructor 28426 | -3/Quarantine | Found Alien Artifact 28437 | -3/Quarantine | Spotted Quarantine Guard 28444 | -3/Quarantine | Destroyed Quarantine Guard 28495 | -3/Quarantine | Spotted Quarantine Guard 28502 | -3/Quarantine | Destroyed Quarantine Guard 28640 | -3/Quarantine | Found Alien Artifact 28640 | -3/Quarantine | Identified Terrabomb 28640 | -3/Quarantine | Used Terrabomb 28670 | -3/Quarantine | Found Terrabomb 28676 | -3/Quarantine | Spotted Quarantine Guard 28683 | -3/Quarantine | Spotted Quarantine Guard 28702 | -3/Quarantine | Spotted Quarantine Guard 28705 | -3/Quarantine | Destroyed Quarantine Guard 28723 | -3/Quarantine | Destroyed Quarantine Guard 28742 | -3/Quarantine | Spotted Quarantine Guard 28759 | -3/Quarantine | Destroyed Quarantine Guard 28845 | -3/Quarantine | Retrieved Zion intel report: Unaware Analyses 28898 | -3/Quarantine | Retrieved Zion intel report: Prototype Stockpiles 28901 | -3/Quarantine | Enhanced Grunt warped into view, answering call for help 28904 | -3/Quarantine | Enhanced Grunt warped into view, answering call for help 28962 | -3/Quarantine | Destroyed Quarantine Guard 28993 | -3/Quarantine | Retrieved Zion intel report: Trap Installations 29087 | -3/Quarantine | Terminal network hard line cut 29107 | -3/Quarantine | Found Alien Artifact 29158 | -3/Quarantine | Spotted Quarantine Guard 29200 | -3/Quarantine | Destroyed Quarantine Guard 29395 | -3/Quarantine | Spotted Quarantine Guard 29402 | -3/Quarantine | Destroyed Quarantine Guard 29486 | -3/Quarantine | Discovered new exit (range 3) 29486 | -3/Quarantine | Spotted Quarantine Guard 29491 | -3/Quarantine | Build established: Scavenger-Tank 29510 | -3/Quarantine | Destroyed Quarantine Guard 29592 | -3/Quarantine | Spotted Quarantine Guard 29596 | -3/Quarantine | Identified Multirail 29611 | -3/Quarantine | Destroyed Quarantine Guard 29624 | -3/Quarantine | Incoming assault squad redirected 29792 | -3/Quarantine | Found Alien Slashing Weapon 29792 | -3/Quarantine | Identified Sigix Broadsword 29826 | -3/Quarantine | Found Alien Impact Weapon 30092 | -3/Quarantine | Build established: Scavenger-Mutant 30473 | -3/Quarantine | Found Alien Artifact 30617 | -3/Quarantine | Identified Core Stripper 30921 | -3/Quarantine | Build established: Mutant 30923 | -3/Quarantine | Spotted Fortress 30932 | -3/Quarantine | Destroyed Fortress 30950 | -3/Quarantine | Found Vortex Chain Reactor 30960 | -3/Quarantine | Found Prototype Device 30960 | -3/Quarantine | Identified Thermal Barrier 30963 | -3/Quarantine | Found Prototype Device 30963 | -3/Quarantine | Identified EM Dispersion Field 30970 | -3/Quarantine | Found Prototype Device 30970 | -3/Quarantine | Identified Exp. Force Field 31109 | -3/Quarantine | Discovered new exit (range 5) 31109 | -3/Quarantine | Spotted Quarantine Guard 31120 | -3/Quarantine | Destroyed Quarantine Guard 31440 | -3/Quarantine | Identified Core Reset Matrix 31440 | -3/Quarantine | Identified Dimensional Node Initializer 31440 | -3/Quarantine | Identified Hpw. Transdimensional Reconstructor (x2) 31440 | -3/Quarantine | Identified Subatomic Replicator 31440 | -3/Quarantine | Used Core Reset Matrix 31444 | -3/Quarantine | Detected hypermatrix surge 31444 | -3/Quarantine | Sensed 8 artifacts in vicinity 31747 | -3/Quarantine | Build established: Alien-Mutant 32570 | -3/Quarantine | Entered Section 7 32571 | -3/Section 7 | Sensed 18 artifacts in vicinity 32691 | -3/Section 7 | Spotted S7 Guard 32703 | -3/Section 7 | Found Integrated Heat Negator 32703 | -3/Section 7 | Installed Integrated Heat Negator, increased core heat dissipation (+40) 32710 | -3/Section 7 | Warped through subspace 32745 | -3/Section 7 | Found Integrated Reactor 32812 | -3/Section 7 | Used Subatomic Replicator to replicate Integrity Redistributor 32817 | -3/Section 7 | Found Integrity Redistributor 32817 | -3/Section 7 | Used Integrity Redistributor, redistributed integrity from core (-148) 32927 | -3/Section 7 | Spotted S7 Guard 32940 | -3/Section 7 | Found Core Physics Calibrator 32968 | -3/Section 7 | Destroyed S7 Guard 33010 | -3/Section 7 | Spotted S7 Guard 33044 | -3/Section 7 | Destroyed S7 Guard 33062 | -3/Section 7 | Found Core Membrane 33062 | -3/Section 7 | Installed Core Membrane, gained immunity to corruption 33102 | -3/Section 7 | Installed Integrated Reactor, increased core energy generation (+10) 33165 | -3/Section 7 | Warped through subspace 33214 | -3/Section 7 | Used Terrabomb 33215 | -3/Section 7 | Warped through subspace 33294 | -3/Section 7 | Discovered new exit (range 4) 33304 | -3/Section 7 | Entered Research 33304 | -2/Research | Evolved 2 slots (calibrated): Utility x3, -Weapon x1 33384 | -2/Research | Retrieved Zion intel report: Branch Access 33384 | -2/Research | Identified exit to Testing 33385 | -2/Research | Zion hero teleported in (7V-RTL) 33420 | -2/Research | Found Unknown Device 33420 | -2/Research | Identified Antimissile System 33662 | -2/Research | Zion Infowar Resupply teleported in 33666 | -2/Research | Found Spectral Analyzer 33902 | -2/Research | Found Corrupted Prototype Device 33902 | -2/Research | Identified 7V-RTL's Ultimate Field 34002 | -2/Research | Allied Derelicts emerged from ambush trap array 34044 | -2/Research | Spotted B-90 Cyclops 34166 | -2/Research | Crushed by falling debris 34302 | -2/Research | Entered Testing 34348 | -2/Testing | Found Prototype Energy Cannon 34351 | -2/Testing | Found Prototype Energy Cannon 34538 | -2/Testing | Discovered new exit (range 5) 34546 | -2/Testing | Entered Access 34546 | -1/Access | Evolved 2 slots (calibrated): Power x2, -Utility x1, Weapon x1 34547 | -1/Access | Sensed 1 artifact in vicinity 35078 | -1/Access | Build established: Generator-Mutant 35114 | -1/Access | Retrieved Zion intel report: Branch Access 35114 | -1/Access | Identified exit to Command 35115 | -1/Access | Zion Recon squad teleported in 35333 | -1/Access | Zion Infowar Resupply teleported in 35333 | -1/Access | P-80 Master assimilated allied BX-N0X(A) 35363 | -1/Access | Entered Command 35687 | -1/Command | Disengaged cave seal 35938 | -1/Command | Found Prototype Protection 35938 | -1/Command | Identified Zio. Weapon Casing 35970 | -1/Command | Spotted M Guard 35972 | -1/Command | Spotted M Guard 35972 | -1/Command | Spotted Combat Programmer 35980 | -1/Command | Spotted Combat Programmer 35998 | -1/Command | Destroyed Combat Programmer 36022 | -1/Command | Destroyed Combat Programmer 36042 | -1/Command | Destroyed M Guard 36071 | -1/Command | Destroyed M Guard 36071 | -1/Command | All MAIN.C guards destroyed 36100 | -1/Command | Found Exp. Targeting Computer 36103 | -1/Command | Found Prototype Reactor 36103 | -1/Command | Identified Zero-point Reactor 36108 | -1/Command | Found Zero-point Reactor 36112 | -1/Command | Found Prototype Device 36112 | -1/Command | Identified AEGIS Remote Shield 36166 | -1/Command | Identified Potential Cannon 36244 | -1/Command | Met MAIN.C 36249 | -1/Command | 0b10 Conduit disabled 36258 | -1/Command | Allies destroyed MAIN.C Shell 36258 | -1/Command | MAIN.C activated Command garrisons 36298 | -1/Command | Destroyed MAIN.C 36321 | -1/Command | Found Prototype Processor 36321 | -1/Command | Identified Exp. Target Analyzer 36751 | -1/Command | Build established: Generator-Tank 36861 | -1/Command | Found Prototype Ballistic Cannon 36861 | -1/Command | Identified Perforator 36871 | -1/Command | Found Zero-point Reactor 36874 | -1/Command | Found Zero-point Reactor 36894 | -1/Command | Found Prototype Processor 36894 | -1/Command | Identified Exp. Core Analyzer 36901 | -1/Command | Found Prototype Device 36901 | -1/Command | Identified Adv. Kinecellerator 36907 | -1/Command | Found Prototype Device 36907 | -1/Command | Identified Exp. ECM Suite 36911 | -1/Command | Found Exp. Targeting Computer 36956 | -1/Command | Used Integrity Redistributor, redistributed integrity from core (-131) 37129 | -1/Command | Build established: Generator-Mutant 37248 | -1/Command | Spotted B-99 Colossus 37255 | -1/Command | Warped through subspace to slip node 37255 | -1/Command | Discovered new exit (range 5) 37258 | -1/Command | Identified Imp. Potential Cannon 37404 | -1/Command | Entered Access_0 37405 | -1/Access_0 | Sensed 2 artifacts in vicinity 37406 | -1/Access_0 | Met Architect 37406 | -1/Access_0 | Destroyed A8 37407 | -1/Access_0 | Architect warped through subspace 37437 | -1/Access_0 | Architect warped through subspace 37459 | -1/Access_0 | Architect warped through subspace 37480 | -1/Access_0 | Architect warped through subspace 37494 | -1/Access_0 | Architect warped through subspace 37513 | -1/Access_0 | Architect warped through subspace 37518 | -1/Access_0 | Subspace Access Node disabled 37532 | -1/Access_0 | Architect warped through subspace 37558 | -1/Access_0 | Architect warped through subspace 37569 | -1/Access_0 | Architect warped through subspace 37592 | -1/Access_0 | Architect warped through subspace 37599 | -1/Access_0 | Architect warped through subspace 37621 | -1/Access_0 | Architect warped through subspace 37629 | -1/Access_0 | Subspace Access Node disabled 37630 | -1/Access_0 | A6 warped into view 37646 | -1/Access_0 | Architect warped through subspace 37653 | -1/Access_0 | Destroyed A6 37669 | -1/Access_0 | Architect warped through subspace 37689 | -1/Access_0 | Architect warped through subspace 37722 | -1/Access_0 | Architect warped through subspace 37737 | -1/Access_0 | Architect warped through subspace 37750 | -1/Access_0 | Architect warped through subspace 37769 | -1/Access_0 | Architect warped through subspace 37782 | -1/Access_0 | Architect warped through subspace 37792 | -1/Access_0 | Architect warped through subspace 37809 | -1/Access_0 | Architect warped through subspace 37817 | -1/Access_0 | Architect warped through subspace 37832 | -1/Access_0 | Architect warped through subspace 37851 | -1/Access_0 | Architect warped through subspace 37867 | -1/Access_0 | Architect warped through subspace 37882 | -1/Access_0 | Architect warped through subspace 37887 | -1/Access_0 | Subspace Access Node disabled 37892 | -1/Access_0 | Architect warped through subspace 37907 | -1/Access_0 | Architect warped through subspace 37915 | -1/Access_0 | Architect warped through subspace 37920 | -1/Access_0 | Architect warped through subspace 37923 | -1/Access_0 | Architect warped through subspace 37942 | -1/Access_0 | Subspace Access Node disabled 38398 | -1/Access_0 | A5 warped into view 38416 | -1/Access_0 | Destroyed A5 38603 | -1/Access_0 | Destroyed A2 38696 | -1/Access_0 | Singularity Gate disabled 39085 | -1/Access_0 | A4 warped into view 39092 | -1/Access_0 | Destroyed A4 39538 | -1/Access_0 | A3 warped into view 39554 | -1/Access_0 | Destroyed A3 45470 | -1/Access_0 | Destroyed Architect 45491 | -1/Access_0 | Found Hpw. Transdimensional Reconstructor 45491 | -1/Access_0 | Warped through subspace to slip node 45491 | -1/Access_0 | Discovered new exit (range 8) 45502 | *** | Heading to fleet! Last Messages --------------- 42185_ Ended siege mode. 42378_ Enhanced Sentry destroyed. 42380_ Acquired 6 matter. 43694_ Acquired Prototype Treads. 43694_ Identified Enh. Armored Heavy Treads. 43696_ Dropped Enh. Armored Heavy Treads. 45283_ Activated siege mode. 45437_ Destroyed Unknown Processor. 45437_ Destroyed Zero-point Reactor. 45465_ Destroyed Prototype Hover Unit. 45465_ Destroyed Zero-point Reactor. 45465_ Destroyed Prototype Hover Unit. 45465_ Destroyed Prototype Device. 45470_ Architect: "Defeated by a malfunctioning replica of a piece of alien starship?! You've got*fzzt* be kiddi*bzzz*" 45470_ Architect destroyed. 45478_ Ended siege mode. 45491_ Acquired Hpw. Transdimensional Reconstructor. 45491_ Warped through subspace, drawn to slip node. 45491_ EXIT=FOUND Map ----- +----------------------------------------------------+ | | | | | | | | | | | | | | | | | | | | | | | | | | | | | | | | | ?????????????????????????????????????????????????? | | ?????????????????????????????????????????????????? | | ?????????????????????????????????????????????????? | | ?????????????????????????????????????????????????? | | ?????????????????????????????????????????????????? | | ?????????????????????????????????????????????????? | | ????????????????????????###??????????????????????? | | ???????????????????????## ##?????????????????????? | | ???????????????????????# #?????????????????????? | | ???????????????????????# @ #?????????????????????? | | ??????????????????????## #?????????????????????? | | ??????????????????????# #?????????????????????? | | ??????????????????????# ##?????????????????????? | | ??????????????????????## #?????????????????????? | | ??????????????????????# #?????????????????????? | | ??????????????????????# ##?????????????????????? | | ??????????????????????# < #?????????????????????? | | ??????????????????????# ##?????????????????????? | | ??????????????????????## #??????????????????????? | | ???????????????????????####??????????????????????? | | ?????????????????????????????????????????????????? | | ?????????????????????????????????????????????????? | | ?????????????????????????????????????????????????? | | ?????????????????????????????????????????????????? | | ?????????????????????????????????????????????????? | | ?????????????????????????????????????????????????? | | ?????????????????????????????????????????????????? | | ?????????????????????????????????????????????????? | | ?????????????????????????????????????????????????? | | ?????????????????????????????????????????????????? | | ?????????????????????????????????????????????????? | | ?????????????????????????????????????????????????? | | ?????????????????????????????????????????????????? | | ?????????????????????????????????????????????????? | +----------------------------------------------------+ Best States ------------- Heat Dissipation 202 Coolant Potential 100 Energy Generation 171 Energy Capacity 1860 Matter Stores 300 Matter Capacity 300 Sight Range 24 Robot Scan Range 19 Terrain Scan Range 16 Terrain Scan Density 60 Jamming Range 22 Power Amplification 40 Base Temperature (-) 100 EM Shielding 4 Armor Coverage 900 Resistance: KI 30 Resistance: EM 75 Utility Shielding 66 Weapon Shielding 100 Point Defense Rating 240 Weapon Cycling 30 Evasion (%) 60 Targeting Accuracy 48 Target Analysis 10 Recoil Reduction 6 Salvage Targeting 2 Offensive Hacking 14 Defensive Hacking 14 Item Schematics ----------------- None Robot Schematics ------------------ None Fabricated ------------ M-13 Machinist | x1 | -7/Factory Alien Tech Used ----------------- Integrated Dissipator Transdimensional Reconstructor Terrabomb Sigix Broadsword Core Stripper Core Reset Matrix Integrated Heat Negator Subatomic Replicator Integrity Redistributor Core Membrane Integrated Reactor High-powered Transdimensional Reconstructor Core Physics Calibrator Achievements -------------- None Challenges ------------ None Game ------ Seed ParticleAbsorptionCapacitor Manual? 0 Play Time 03:35:30 Cumulative 2138.5 hours Start 2021.08.19 @ 23:28:43 End 2021.08.20 @ 05:00:28 Sessions 7 Manual Loads 0 Difficulty Rogue Special Mode None Game No. 2655 Rogue 2647 Adventurer 0 Explorer 8 Win Type 2 Total 241 Types 45/31/91/3/3/5/60/2/1 Lore% 100 Gallery% 99 Achievement% 100 Wizard Run 0 Options --------- ASCII 0 Keyboard 1 Movement Vi Keybinds 1 Fullscreen 1 Font 18/SmallcapsGlow Map View 76x50 Tactical HUD 1 Map Filters NONE Filters NONE Steam 1 RUN: 1a47dac1-7e57-47f2-971e-7f01613880e6